{"text_format":"1","workbook":"xlsx","n_sheets":4,"sheets":["Auszahlungsantrag","MB I - AZA - Seite 2","AZA MB I Seite 3","AZA Bezug"],"not_rendered":{"charts":0,"images":0,"macros":0,"external_links":0,"defined_names":1,"comments":2,"pivot_tables":0},"unopened":[],"bounds":{"document_bytes":16777216,"sheet_cells":100000,"rows_first":2000,"rows_last":500,"rows_between":2000,"halvings":0,"cell_chars":16384,"cell_head_chars":4096},"cells_cut":0,"cells_raw":0,"read":"whole","date_system":"1900"}

{"sheet":"Auszahlungsantrag","index":0,"n_rows":94,"n_cols":43,"rows_kept":94,"cut":false,"hidden":false,"merged":[[22,25,23,43],[4,2,4,15],[4,16,4,40],[9,25,10,43],[12,25,13,43],[85,2,85,45],[83,2,84,44],[81,2,81,44],[79,2,80,44],[34,45,35,45],[55,1,55,45],[43,1,43,45],[41,45,42,45],[41,28,42,41],[41,42,42,44],[46,1,46,45],[44,45,45,45],[47,42,48,44],[50,1,51,24],[50,28,51,41],[50,42,51,44],[1,42,1,45],[8,1,8,16],[18,17,19,24],[3,1,3,22],[3,23,3,45],[6,1,7,17],[6,25,7,44],[8,17,8,45],[9,17,10,24],[12,17,13,24],[15,25,16,43],[73,2,73,44],[59,1,63,45],[69,2,71,43],[58,1,58,45],[64,2,65,44],[67,34,68,38],[67,2,68,33],[74,2,74,44],[75,2,76,22],[75,23,76,44],[77,2,78,22],[77,23,77,44],[40,1,40,45],[39,1,39,45],[56,1,57,24],[53,45,54,45],[53,1,54,24],[44,1,45,24],[44,28,45,41],[44,42,45,44],[53,28,54,41],[53,42,54,44],[56,28,57,41],[56,42,57,44],[56,45,57,45],[47,1,48,24],[41,1,42,24],[47,28,48,41],[34,1,35,5],[34,25,35,26],[34,6,36,17],[33,1,33,45],[29,6,30,9],[29,10,30,21],[31,1,32,5],[31,45,32,45],[34,18,35,23],[34,24,35,24],[24,25,25,43],[1,32,1,41],[1,2,1,31],[37,27,38,44],[37,24,38,26],[9,1,25,16],[31,27,32,35],[31,36,32,44],[29,27,30,35],[29,36,30,44],[26,26,27,40],[31,6,32,9],[31,10,32,21],[15,17,16,24],[18,25,19,43],[34,27,35,44],[93,16,94,20],[93,2,94,6],[93,21,94,24],[93,27,94,31],[93,32,94,35]]}
[]
[null,null,"Auszahlungsantrag/Verwendungsnachweis (Anlage 7 + 8)",null,null,null,null,null,null,null,null,null,null,null,null,null,null,null,null,null,null,null,null,null,null,null,null,null,null,null,null,null,"AZA MB I Seite 1 Stand:",null,null,null,null,null,null,null,null,null,{"$f":"'AZA Bezug'!M17","v":"2024-02-13"}]
[]
[]
[null,null," Ermächtigungsgrundlage:",null,null,null,null,null,null,null,null,null,null,null,null,null,"Forst Förderrichtlinie \nMB I - Umstellung auf naturnahe Waldwirtschaft"]
[]
[null,null,null,null,null,null,null,null,null,null,null,null,null,null,null,null,null,null,null,null,null,null,null,null,null,"Antragstellende Person/ en"]
[]
[]
[null,"Landesbetrieb Forst Brandenburg\nBewilligungsbehörde\nVietmannsorfer Str. 39\n17268 Templin\n",null,null,null,null,null,null,null,null,null,null,null,null,null,null,null,"Firma/FBG"]
[]
[]
[null,null,null,null,null,null,null,null,null,null,null,null,null,null,null,null,null,"Name, Vorname"]
[]
[]
[null,null,null,null,null,null,null,null,null,null,null,null,null,null,null,null,null,"Straße, Hausnr."]
[]
[]
[null,null,null,null,null,null,null,null,null,null,null,null,null,null,null,null,null,"PLZ, Ort"]
[]
[]
[]
[null,null,null,null,null,null,null,null,null,null,null,null,null,null,null,null,null,null,null,null,null,null,null,null,null,"Der Antrag ist ein… (Bitte ausfählen)"]
[]
[null,null,null,null,null,null,null,null,null,null,null,null,null,null,null,null,null,null,null,null,null,null,null,null,null,"Auszahlungsantrag/Endverwendungsnachweis"]
[]
[]
[]
[]
[null,null,null,null,null,null,"Richtlinie Nr.",null,null,null,"Vorhabenbeschreibung",null,null,null,null,null,null,null,null,null,null,null,null,null,null,null,null,"Durchführung vom",null,null,null,null,null,null,null,null,"Durchführung bis"]
[]
[null,null,null,null,null,null,"-",null,null,null,{"$f":"IF(G32=\"I.2.1\",'AZA Bezug'!N12,IF(G32=\"I.2.2\",'AZA Bezug'!N13,IF(G32=\"I.2.1\nI.2.2\",'AZA Bezug'!N14,\"-\")))","v":"-"}]
[]
[]
[null,"Bezug:",null,null,null,null,"letzter \nZuwendungsbescheid vom",null,null,null,null,null,null,null,null,null,null,null,null,null,null,null,null,null,null,"AZ"]
[]
[]
[null,null,null,null,null,null,null,null,null,null,null,null,null,null,null,null,null,null,null,null,null,null,null,null,"BNR-ZD"]
[]
[]
[]
[null,"Bewilligungsbetrag im laufenden Haushaltsjahr",null,null,null,null,null,null,null,null,null,null,null,null,null,null,null,null,null,null,null,null,null,null,null,null,null,null,null,null,null,null,null,null,null,null,null,null,null,null,null,null,"€"]
[]
[]
[null,"abzgl. bislang im laufenden Haushaltsjahr überwiesen",null,null,null,null,null,null,null,null,null,null,null,null,null,null,null,null,null,null,null,null,null,null,null,null,null,null,null,null,null,null,null,null,null,null,null,null,null,null,null,null,"€"]
[]
[]
[null,"Leistungen Dritter (ohne öffentliche Förderung)",null,null,null,null,null,null,null,null,null,null,null,null,null,null,null,null,null,null,null,null,null,null,null,null,null,null,null,null,null,null,null,null,null,null,null,null,null,null,null,null,"€"]
[]
[]
[null,"sonstige öffentliche Förderung",null,null,null,null,null,null,null,null,null,null,null,null,null,null,null,null,null,null,null,null,null,null,null,null,null,null,null,null,null,null,null,null,null,null,null,null,null,null,null,null,"€"]
[]
[]
[null,"im laufenden Haushaltsjahr noch verfügbare Fördermittel",null,null,null,null,null,null,null,null,null,null,null,null,null,null,null,null,null,null,null,null,null,null,null,null,null,null,{"$f":"AC42-AC45","v":0},null,null,null,null,null,null,null,null,null,null,null,null,null,"€"]
[]
[]
[null,"Ich beantrage die Erstattung von",null,null,null,null,null,null,null,null,null,null,null,null,null,null,null,null,null,null,null,null,null,null,null,null,null,null,{"$f":"'AZA MB I Seite 3'!T40","v":0},null,null,null,null,null,null,null,null,null,null,null,null,null,"€"]
[]
[]
[null,"Mit meiner Unterschrift bestätige/n ich/wir, dass sich die beantragte Erstattung auf der Grundlage des o.g. Bewilligungsbetrages und den von mir/uns erklärten Angaben gemäß der beigefügten Anlage 1  ergibt."]
[]
[]
[]
[]
[null,null,"Überweisung des Betrages wie folgt:"]
[]
[]
[null,null,"Veränderung der Bankverbindung zum Zeitpunkt der Antragstellung:",null,null,null,null,null,null,null,null,null,null,null,null,null,null,null,null,null,null,null,null,null,null,null,null,null,null,null,null,null,null,null,"nein"]
[]
[null,null,{"$f":"IF(AI68=\"Nein\",\"Bankverbindung vorliegend, keine neue Angabe notwendig.\",IF(AI68=\"Ja\",\"Bitte die geänderte bzw. neue Bankverbindung hier eintragen:\",\"-\"))","v":"Bankverbindung vorliegend, keine neue Angabe notwendig."}]
[]
[]
[]
[null,null,"evtl. neue Bankverbindung"]
[]
[]
[]
[null,null,"IBAN (International Bank Account Number)",null,null,null,null,null,null,null,null,null,null,null,null,null,null,null,null,null,null,null,null,"Name der Bank"]
[]
[]
[]
[null,null,"Weitere Zeichen für Bankverbindungen außerhalb Deutschlands"]
[]
[]
[]
[null,null,"Name der Kontoinhabenden"]
[]
[]
[]
[]
[]
[]
[]
[null,null,"Für Behörde",null,null,null,null,null,null,null,null,null,null,null,null,null,"PEB VWN",null,null,null,null,null,null,null,null,null,null,"PEB AZA"]

{"sheet":"MB I - AZA - Seite 2","index":1,"n_rows":74,"n_cols":41,"rows_kept":74,"cut":false,"hidden":false,"merged":[[33,6,33,12],[33,13,33,22],[33,23,33,34],[34,23,34,34],[35,23,35,34],[1,37,1,40],[1,27,1,36],[2,7,2,21],[2,33,2,40],[2,22,2,32],[1,1,1,26],[2,1,2,6],[61,2,71,39],[59,2,60,39],[54,4,57,39],[34,6,34,12],[35,6,35,12],[36,6,36,12],[34,13,34,22],[35,13,35,22],[36,13,36,22],[39,2,39,39],[36,23,36,34],[52,4,53,36]]}
[]
[null,"Auszahlungsantrag/Verwendungsnachweis (Anlage 7 + 8)",null,null,null,null,null,null,null,null,null,null,null,null,null,null,null,null,null,null,null,null,null,null,null,null,null,"AZA MB I Seite 2 Stand:",null,null,null,null,null,null,null,null,null,{"$f":"'AZA Bezug'!M17","v":"2024-02-13"}]
[null,"Aktenzeichen",null,null,null,null,null,{"$f":"Auszahlungsantrag!AB35","v":0}]
[]
[null,null,"Bestätigungen / Erklärungen"]
[]
[null,null,"Die Angaben im Auszahlungsantrag sowie in der/den Anlage(n) stimmen mit dem/den"]
[null,null,"Bewilligungsbescheid(en) überein. In Kenntnis der strafrechtlichen und förderrechtlichen "]
[null,null,"Bedeutung unvollständiger oder falscher Angaben wird versichert, dass"]
[]
[null,null,"-",null,"die Allgemeinen (ANBest-EU) und Besonderen Nebenbestimmungen des "]
[null,null,null,null,"Bewilligungsbescheides beachtet wurden und alle Unterlagen gemäß Punkt 6.4"]
[null,null,null,null,"ANBest-EU aufbewahrt werden,"]
[]
[null,null,"-",null,"die Ausgaben notwendig waren, wirtschaftlich und sparsam verfahren worden ist,"]
[]
[null,null,"-",null,"die bezahlten Ausgaben (bei Unternehmensleistung) laut Rechnungs-"]
[null,null,null,null,"unterlagen im Zusammenhang mit dem geförderten Vorhaben angefallen sind,"]
[]
[null,null,"-",null,"die Fördermittel ausschließlich zur Erfüllung des im Bewilligungsbescheid näher"]
[null,null,null,null,"bezeichneten Zwecks verwendet wurden."]
[]
[null,null,"Den/ der unterzeichnenden Person/en ist bekannt, dass die Fördermittel im Falle ihrer zweck-"]
[null,null,"widrigen Verwendung der Rückforderung und Verzinsung unterliegen."]
[]
[null,null,"Auskunft zu vorhabenbezogenen Einnahmen (einschließlich Zuwendung Dritter)"]
[]
[null,null,"Ich/Wir erkläre/n, dass über die Angaben im Bewilligungsbescheid hinaus"]
[]
[null,null,null,null,null,null,"keine weiteren vorhabenbezogenen Einnahmen generiert werden/wurden."]
[]
[null,null,null,null,null,null,"weitere vorhabenbezogene Einnahmen generiert werden/wurden:"]
[]
[null,null,null,null,null,null,"Betrag in €",null,null,null,null,null,null,"Eingangsdatum",null,null,null,null,null,null,null,null,null,"Herkunft"]
[]
[]
[]
[]
[]
[null,null,"Anlagenübersicht"]
[]
[]
[null,null,"1.",null,"Rechnungskopie bei Unternehmensleistung und bei öffentlichen Auftraggebenden "]
[]
[null,null,"2.",null,"Publizitätspflicht: a) Foto von der Erläuterungstafel ab 50.000 € Gesamtkosten"]
[null,null,null,null,"b) Bildschirmabdruck von Veröffentlichung auf Website (nur wenn diese "]
[null,null,null,null,"gewerblich genutzt wird)"]
[]
[null,null,"3.",null,"Vergabeunterlagen bei öffentlichen Antragstellenden (ab 2500,00 € Nettoauftragswert)"]
[]
[null,null,"4.",null,"Erklärung bzgl. Interessenkonflikt (nur öffentliche Antragstellende)"]
[]
[null,null,"5.",null,"weitere Anlage/n (Aufbewahrungsort, mit Fördervorgangang zusammenhängender Akten, wenn abweichend von Antragsperson/-en, hier eintragen.)"]
[]
[]
[]
[]
[]
[]
[null,null,"Sachbericht (z.B. Art der Kultur- u. Bodenarbeiten, Pflanzenart, Pflanzverband sowie Abweichungen vom geplanten Vorhaben und Finanzierungsplan)"]
[]
[]
[]
[]
[]
[]
[]
[]
[]
[]
[]
[]
[]
[null,null,null,null,null,null,null,null,null,null,null,null,null,null,null,null,null,null,null,null,null,null,null,null,null,null,null,null,null,null,null,null,null,null,null,null,null,null,null,null,{"$f":"Auszahlungsantrag!#REF!","v":{"$error":"#REF!"}}]

{"sheet":"AZA MB I Seite 3","index":2,"n_rows":62,"n_cols":33,"rows_kept":62,"cut":false,"hidden":false,"merged":[[33,26,33,30],[33,31,33,35],[39,2,41,18],[43,2,44,18],[37,12,37,15],[37,16,37,19],[37,20,37,21],[37,22,37,25],[37,26,37,30],[37,31,37,35],[1,25,1,31],[1,2,1,24],[35,2,35,3],[35,4,35,11],[35,12,35,15],[35,16,35,19],[35,20,35,21],[35,22,35,25],[35,26,35,30],[35,31,35,35],[33,2,33,3],[33,4,33,11],[33,12,33,15],[33,16,33,19],[33,20,33,21],[33,22,33,25],[32,2,32,3],[32,4,32,11],[32,12,32,15],[32,16,32,19],[32,20,32,21],[32,22,32,25],[32,26,32,30],[32,31,32,35],[45,19,45,24],[45,25,45,34],[39,19,41,24],[39,25,41,34],[43,19,44,24],[43,25,44,34],[36,2,36,3],[36,4,36,11],[36,12,36,15],[36,16,36,19],[36,20,36,21],[36,22,36,25],[36,26,36,30],[36,31,36,35],[37,2,37,3],[37,4,37,11],[30,2,30,3],[30,4,30,11],[30,12,30,15],[30,16,30,19],[30,20,30,21],[30,22,30,25],[30,26,30,30],[30,31,30,35],[34,2,34,3],[34,4,34,11],[34,12,34,15],[34,16,34,19],[34,20,34,21],[34,22,34,25],[34,26,34,30],[34,31,34,35],[31,2,31,3],[31,4,31,11],[31,12,31,15],[31,16,31,19],[31,20,31,21],[31,22,31,25],[31,26,31,30],[31,31,31,35],[28,2,28,3],[28,4,28,11],[28,12,28,15],[28,16,28,19],[28,20,28,21],[28,22,28,25],[28,26,28,30],[28,31,28,35],[29,2,29,3],[29,4,29,11],[29,12,29,15],[29,16,29,19],[29,20,29,21],[29,22,29,25],[29,26,29,30],[29,31,29,35],[26,2,26,3],[26,4,26,11],[26,12,26,15],[26,16,26,19],[26,20,26,21],[26,22,26,25],[26,26,26,30],[26,31,26,35],[27,2,27,3],[27,4,27,11],[27,12,27,15],[27,16,27,19],[27,20,27,21],[27,22,27,25],[27,26,27,30],[27,31,27,35],[24,2,24,3],[24,4,24,11],[24,12,24,15],[24,16,24,19],[24,20,24,21],[24,22,24,25],[24,26,24,30],[24,31,24,35],[25,2,25,3],[25,4,25,11],[25,12,25,15],[25,16,25,19],[25,20,25,21],[25,22,25,25],[25,26,25,30],[25,31,25,35],[22,2,22,3],[22,4,22,11],[22,12,22,15],[22,16,22,19],[22,20,22,21],[22,22,22,25],[22,26,22,30],[22,31,22,35],[23,2,23,3],[23,4,23,11],[23,12,23,15],[23,16,23,19],[23,20,23,21],[23,22,23,25],[23,26,23,30],[23,31,23,35],[20,2,20,3],[20,4,20,11],[20,12,20,15],[20,16,20,19],[20,20,20,21],[20,22,20,25],[20,26,20,30],[20,31,20,35],[21,2,21,3],[21,4,21,11],[21,12,21,15],[21,16,21,19],[21,20,21,21],[21,22,21,25],[21,26,21,30],[21,31,21,35],[18,2,18,3],[18,4,18,11],[18,12,18,15],[18,16,18,19],[18,20,18,21],[18,22,18,25],[18,26,18,30],[18,31,18,35],[19,2,19,3],[19,4,19,11],[19,12,19,15],[19,16,19,19],[19,20,19,21],[19,22,19,25],[19,26,19,30],[19,31,19,35],[16,2,16,3],[16,4,16,11],[16,12,16,15],[16,16,16,19],[16,20,16,21],[16,22,16,25],[16,26,16,30],[16,31,16,35],[17,2,17,3],[17,4,17,11],[17,12,17,15],[17,16,17,19],[17,20,17,21],[17,22,17,25],[17,26,17,30],[17,31,17,35],[14,2,14,3],[14,4,14,11],[14,12,14,15],[14,16,14,19],[14,20,14,21],[14,22,14,25],[14,26,14,30],[14,31,14,35],[15,2,15,3],[15,4,15,11],[15,12,15,15],[15,16,15,19],[15,20,15,21],[15,22,15,25],[15,26,15,30],[15,31,15,35],[12,2,12,3],[12,4,12,11],[12,12,12,15],[12,16,12,19],[12,20,12,21],[12,22,12,25],[12,26,12,30],[12,31,12,35],[13,2,13,3],[13,4,13,11],[13,12,13,15],[13,16,13,19],[13,20,13,21],[13,22,13,25],[13,26,13,30],[13,31,13,35],[10,2,10,3],[10,4,10,11],[10,12,10,15],[10,16,10,19],[10,20,10,21],[10,22,10,25],[10,26,10,30],[10,31,10,35],[11,2,11,3],[11,4,11,11],[11,12,11,15],[11,16,11,19],[11,20,11,21],[11,22,11,25],[11,26,11,30],[11,31,11,35],[6,1,7,1],[6,2,7,3],[6,4,7,11],[6,12,7,15],[6,16,7,19],[6,20,7,21],[6,22,7,25],[6,26,7,30],[6,31,7,35],[48,2,49,34],[47,2,47,15],[1,32,1,35],[2,2,2,25],[4,4,4,11],[4,16,4,19],[4,20,4,25],[4,2,4,3],[8,2,8,3],[8,4,8,11],[8,12,8,15],[8,16,8,19],[8,20,8,21],[8,22,8,25],[8,26,8,30],[8,31,8,35],[9,2,9,3],[9,4,9,11],[9,12,9,15],[9,16,9,19],[9,20,9,21],[9,22,9,25],[9,26,9,30],[9,31,9,35],[55,2,56,34],[50,2,52,34],[57,2,60,34],[53,19,53,25],[53,26,53,34],[53,2,53,5],[61,2,61,5],[53,6,53,17],[61,6,61,17],[61,19,61,23],[61,24,61,34]]}
[]
[null,null,"Zum Auszahlungsantrag/Verwendungsnachweis (Anlage 7 + 8) im MB I ",null,null,null,null,null,null,null,null,null,null,null,null,null,null,null,null,null,null,null,null,null,null,"AZA MB I Seite 3 Stand:",null,null,null,null,null,null,{"$f":"'AZA Bezug'!M17","v":"2024-02-13"}]
[null,null,"Realisierungsanzeige"]
[]
[null,null,"AZ:",null,{"$f":"IF(Auszahlungsantrag!AB35=\"\",\"\",Auszahlungsantrag!AB35)","v":""}]
[]
[null,"lfd.Nr.","Pro- jekt Nr.",null,"Einzelvorhaben",null,null,null,null,null,null,null,"Menge\n(lt. Bewil-\nligung)",null,null,null,"Menge\n(Realisier-\nung)",null,null,null,"Ein- heit",null,"Festbetrag",null,null,null,"Summe (lt. Bewilligung)",null,null,null,null,"Summe (Realisierung)"]
[]
[null,1,"-",null,"-",null,null,null,null,null,null,null,null,null,null,null,null,null,null,null,{"$f":"IF(E9='AZA Bezug'!$D$5,'AZA Bezug'!$F$5,IF(E9='AZA Bezug'!$D$6,'AZA Bezug'!$F$6,IF(E9='AZA Bezug'!$D$7,'AZA Bezug'!$F$7,IF(E9='AZA Bezug'!$D$8,'AZA Bezug'!$F$8,IF(E9='AZA Bezug'!$D$9,'AZA Bezug'!$F$9,IF(E9='AZA Bezug'!$D$10,'AZA Bezug'!$F$10,IF(E9='AZA Bezug'!$D$11,'AZA Bezug'!$F$11,IF(E9='AZA Bezug'!$D$12,'AZA Bezug'!$F$12,IF(E9='AZA Bezug'!$D$13,'AZA Bezug'!$F$13,IF(E9='AZA Bezug'!$D$14,'AZA Bezug'!$F$14,IF(E9='AZA Bezug'!$D$15,'AZA Bezug'!$F$15,IF(E9='AZA Bezug'!$D$16,'AZA Bezug'!$F$16,IF(E9='AZA Bezug'!$D$17,'AZA Bezug'!$F$17,IF(E9='AZA Bezug'!$D$18,'AZA Bezug'!$F$18,IF(E9='AZA Bezug'!$D$19,'AZA Bezug'!$F$19,IF(E9='AZA Bezug'!$D$20,'AZA Bezug'!$F$20,IF(E9='AZA Bezug'!$D$21,'AZA Bezug'!$F$21,IF(E9='AZA Bezug'!$D$22,'AZA Bezug'!$F$22,\"-\"))))))))))))))))))","v":"-"},null,{"$f":"IF(E9='AZA Bezug'!$D$5,'AZA Bezug'!$G$5,IF(E9='AZA Bezug'!$D$6,'AZA Bezug'!$G$6,IF(E9='AZA Bezug'!$D$7,'AZA Bezug'!$G$7,IF(E9='AZA Bezug'!$D$8,'AZA Bezug'!$G$8,IF(E9='AZA Bezug'!$D$9,'AZA Bezug'!$G$9,IF(E9='AZA Bezug'!$D$10,'AZA Bezug'!$G$10,IF(E9='AZA Bezug'!$D$11,'AZA Bezug'!$G$11,IF(E9='AZA Bezug'!$D$12,'AZA Bezug'!$G$12,IF(E9='AZA Bezug'!$D$13,'AZA Bezug'!$G$13,IF(E9='AZA Bezug'!$D$14,'AZA Bezug'!$G$14,IF(E9='AZA Bezug'!$D$15,'AZA Bezug'!$G$15,IF(E9='AZA Bezug'!$D$16,'AZA Bezug'!$G$16,IF(E9='AZA Bezug'!$D$17,'AZA Bezug'!$G$17,IF(E9='AZA Bezug'!$D$18,'AZA Bezug'!$G$18,IF(E9='AZA Bezug'!$D$19,'AZA Bezug'!$G$19,IF(E9='AZA Bezug'!$D$20,'AZA Bezug'!$G$20,IF(E9='AZA Bezug'!$D$21,'AZA Bezug'!$G$21,IF(E9='AZA Bezug'!$D$22,'AZA Bezug'!$G$22,\"-\"))))))))))))))))))","v":"-"},null,null,null,{"$f":"ROUNDDOWN(IF(OR(C9=\"-\",C9=0),0,IF(OR(E9=\"-\",E9=0),0,IF(OR(M9=\"-\",M9=0),0,IF(W9=2350,W9*ROUNDDOWN(M9,2)/1000,IF(W9=1040,W9*ROUNDDOWN(M9,2)/1000,IF(W9=516,W9*ROUNDDOWN(M9,2)/1000,IF(W9=720,W9*ROUNDDOWN(M9,2)/1000,IF(W9=38,W9*ROUNDDOWN(M9,2),W9*ROUNDDOWN(M9,2))))))))),2)","v":0},null,null,null,null,{"$f":"ROUNDDOWN(IF(OR(C9=\"-\",C9=0),0,IF(OR(E9=\"-\",E9=0),0,IF(OR(M9=\"-\",M9=0),0,IF(W9=2350,W9*ROUNDDOWN(Q9,2)/1000,IF(W9=1040,W9*ROUNDDOWN(Q9,2)/1000,IF(W9=516,W9*ROUNDDOWN(Q9,2)/1000,IF(W9=720,W9*ROUNDDOWN(Q9,2)/1000,IF(W9=38,W9*ROUNDDOWN(Q9,2),W9*ROUNDDOWN(Q9,2))))))))),2)","v":0}]
[null,2,"-",null,"-",null,null,null,null,null,null,null,null,null,null,null,null,null,null,null,{"$f":"IF(E10='AZA Bezug'!$D$5,'AZA Bezug'!$F$5,IF(E10='AZA Bezug'!$D$6,'AZA Bezug'!$F$6,IF(E10='AZA Bezug'!$D$7,'AZA Bezug'!$F$7,IF(E10='AZA Bezug'!$D$8,'AZA Bezug'!$F$8,IF(E10='AZA Bezug'!$D$9,'AZA Bezug'!$F$9,IF(E10='AZA Bezug'!$D$10,'AZA Bezug'!$F$10,IF(E10='AZA Bezug'!$D$11,'AZA Bezug'!$F$11,IF(E10='AZA Bezug'!$D$12,'AZA Bezug'!$F$12,IF(E10='AZA Bezug'!$D$13,'AZA Bezug'!$F$13,IF(E10='AZA Bezug'!$D$14,'AZA Bezug'!$F$14,IF(E10='AZA Bezug'!$D$15,'AZA Bezug'!$F$15,IF(E10='AZA Bezug'!$D$16,'AZA Bezug'!$F$16,IF(E10='AZA Bezug'!$D$17,'AZA Bezug'!$F$17,IF(E10='AZA Bezug'!$D$18,'AZA Bezug'!$F$18,IF(E10='AZA Bezug'!$D$19,'AZA Bezug'!$F$19,IF(E10='AZA Bezug'!$D$20,'AZA Bezug'!$F$20,IF(E10='AZA Bezug'!$D$21,'AZA Bezug'!$F$21,IF(E10='AZA Bezug'!$D$22,'AZA Bezug'!$F$22,\"-\"))))))))))))))))))","v":"-"},null,{"$f":"IF(E10='AZA Bezug'!$D$5,'AZA Bezug'!$G$5,IF(E10='AZA Bezug'!$D$6,'AZA Bezug'!$G$6,IF(E10='AZA Bezug'!$D$7,'AZA Bezug'!$G$7,IF(E10='AZA Bezug'!$D$8,'AZA Bezug'!$G$8,IF(E10='AZA Bezug'!$D$9,'AZA Bezug'!$G$9,IF(E10='AZA Bezug'!$D$10,'AZA Bezug'!$G$10,IF(E10='AZA Bezug'!$D$11,'AZA Bezug'!$G$11,IF(E10='AZA Bezug'!$D$12,'AZA Bezug'!$G$12,IF(E10='AZA Bezug'!$D$13,'AZA Bezug'!$G$13,IF(E10='AZA Bezug'!$D$14,'AZA Bezug'!$G$14,IF(E10='AZA Bezug'!$D$15,'AZA Bezug'!$G$15,IF(E10='AZA Bezug'!$D$16,'AZA Bezug'!$G$16,IF(E10='AZA Bezug'!$D$17,'AZA Bezug'!$G$17,IF(E10='AZA Bezug'!$D$18,'AZA Bezug'!$G$18,IF(E10='AZA Bezug'!$D$19,'AZA Bezug'!$G$19,IF(E10='AZA Bezug'!$D$20,'AZA Bezug'!$G$20,IF(E10='AZA Bezug'!$D$21,'AZA Bezug'!$G$21,IF(E10='AZA Bezug'!$D$22,'AZA Bezug'!$G$22,\"-\"))))))))))))))))))","v":"-"},null,null,null,{"$f":"ROUNDDOWN(IF(OR(C10=\"-\",C10=0),0,IF(OR(E10=\"-\",E10=0),0,IF(OR(M10=\"-\",M10=0),0,IF(W10=2350,W10*ROUNDDOWN(M10,2)/1000,IF(W10=1040,W10*ROUNDDOWN(M10,2)/1000,IF(W10=516,W10*ROUNDDOWN(M10,2)/1000,IF(W10=720,W10*ROUNDDOWN(M10,2)/1000,IF(W10=38,W10*ROUNDDOWN(M10,2),W10*ROUNDDOWN(M10,2))))))))),2)","v":0},null,null,null,null,{"$f":"ROUNDDOWN(IF(OR(C10=\"-\",C10=0),0,IF(OR(E10=\"-\",E10=0),0,IF(OR(M10=\"-\",M10=0),0,IF(W10=2350,W10*ROUNDDOWN(Q10,2)/1000,IF(W10=1040,W10*ROUNDDOWN(Q10,2)/1000,IF(W10=516,W10*ROUNDDOWN(Q10,2)/1000,IF(W10=720,W10*ROUNDDOWN(Q10,2)/1000,IF(W10=38,W10*ROUNDDOWN(Q10,2),W10*ROUNDDOWN(Q10,2))))))))),2)","v":0}]
[null,3,"-",null,"-",null,null,null,null,null,null,null,null,null,null,null,null,null,null,null,{"$f":"IF(E11='AZA Bezug'!$D$5,'AZA Bezug'!$F$5,IF(E11='AZA Bezug'!$D$6,'AZA Bezug'!$F$6,IF(E11='AZA Bezug'!$D$7,'AZA Bezug'!$F$7,IF(E11='AZA Bezug'!$D$8,'AZA Bezug'!$F$8,IF(E11='AZA Bezug'!$D$9,'AZA Bezug'!$F$9,IF(E11='AZA Bezug'!$D$10,'AZA Bezug'!$F$10,IF(E11='AZA Bezug'!$D$11,'AZA Bezug'!$F$11,IF(E11='AZA Bezug'!$D$12,'AZA Bezug'!$F$12,IF(E11='AZA Bezug'!$D$13,'AZA Bezug'!$F$13,IF(E11='AZA Bezug'!$D$14,'AZA Bezug'!$F$14,IF(E11='AZA Bezug'!$D$15,'AZA Bezug'!$F$15,IF(E11='AZA Bezug'!$D$16,'AZA Bezug'!$F$16,IF(E11='AZA Bezug'!$D$17,'AZA Bezug'!$F$17,IF(E11='AZA Bezug'!$D$18,'AZA Bezug'!$F$18,IF(E11='AZA Bezug'!$D$19,'AZA Bezug'!$F$19,IF(E11='AZA Bezug'!$D$20,'AZA Bezug'!$F$20,IF(E11='AZA Bezug'!$D$21,'AZA Bezug'!$F$21,IF(E11='AZA Bezug'!$D$22,'AZA Bezug'!$F$22,\"-\"))))))))))))))))))","v":"-"},null,{"$f":"IF(E11='AZA Bezug'!$D$5,'AZA Bezug'!$G$5,IF(E11='AZA Bezug'!$D$6,'AZA Bezug'!$G$6,IF(E11='AZA Bezug'!$D$7,'AZA Bezug'!$G$7,IF(E11='AZA Bezug'!$D$8,'AZA Bezug'!$G$8,IF(E11='AZA Bezug'!$D$9,'AZA Bezug'!$G$9,IF(E11='AZA Bezug'!$D$10,'AZA Bezug'!$G$10,IF(E11='AZA Bezug'!$D$11,'AZA Bezug'!$G$11,IF(E11='AZA Bezug'!$D$12,'AZA Bezug'!$G$12,IF(E11='AZA Bezug'!$D$13,'AZA Bezug'!$G$13,IF(E11='AZA Bezug'!$D$14,'AZA Bezug'!$G$14,IF(E11='AZA Bezug'!$D$15,'AZA Bezug'!$G$15,IF(E11='AZA Bezug'!$D$16,'AZA Bezug'!$G$16,IF(E11='AZA Bezug'!$D$17,'AZA Bezug'!$G$17,IF(E11='AZA Bezug'!$D$18,'AZA Bezug'!$G$18,IF(E11='AZA Bezug'!$D$19,'AZA Bezug'!$G$19,IF(E11='AZA Bezug'!$D$20,'AZA Bezug'!$G$20,IF(E11='AZA Bezug'!$D$21,'AZA Bezug'!$G$21,IF(E11='AZA Bezug'!$D$22,'AZA Bezug'!$G$22,\"-\"))))))))))))))))))","v":"-"},null,null,null,0,null,null,null,null,0]
[null,4,"-",null,"-",null,null,null,null,null,null,null,null,null,null,null,null,null,null,null,{"$f":"IF(E12='AZA Bezug'!$D$5,'AZA Bezug'!$F$5,IF(E12='AZA Bezug'!$D$6,'AZA Bezug'!$F$6,IF(E12='AZA Bezug'!$D$7,'AZA Bezug'!$F$7,IF(E12='AZA Bezug'!$D$8,'AZA Bezug'!$F$8,IF(E12='AZA Bezug'!$D$9,'AZA Bezug'!$F$9,IF(E12='AZA Bezug'!$D$10,'AZA Bezug'!$F$10,IF(E12='AZA Bezug'!$D$11,'AZA Bezug'!$F$11,IF(E12='AZA Bezug'!$D$12,'AZA Bezug'!$F$12,IF(E12='AZA Bezug'!$D$13,'AZA Bezug'!$F$13,IF(E12='AZA Bezug'!$D$14,'AZA Bezug'!$F$14,IF(E12='AZA Bezug'!$D$15,'AZA Bezug'!$F$15,IF(E12='AZA Bezug'!$D$16,'AZA Bezug'!$F$16,IF(E12='AZA Bezug'!$D$17,'AZA Bezug'!$F$17,IF(E12='AZA Bezug'!$D$18,'AZA Bezug'!$F$18,IF(E12='AZA Bezug'!$D$19,'AZA Bezug'!$F$19,IF(E12='AZA Bezug'!$D$20,'AZA Bezug'!$F$20,IF(E12='AZA Bezug'!$D$21,'AZA Bezug'!$F$21,IF(E12='AZA Bezug'!$D$22,'AZA Bezug'!$F$22,\"-\"))))))))))))))))))","v":"-"},null,{"$f":"IF(E12='AZA Bezug'!$D$5,'AZA Bezug'!$G$5,IF(E12='AZA Bezug'!$D$6,'AZA Bezug'!$G$6,IF(E12='AZA Bezug'!$D$7,'AZA Bezug'!$G$7,IF(E12='AZA Bezug'!$D$8,'AZA Bezug'!$G$8,IF(E12='AZA Bezug'!$D$9,'AZA Bezug'!$G$9,IF(E12='AZA Bezug'!$D$10,'AZA Bezug'!$G$10,IF(E12='AZA Bezug'!$D$11,'AZA Bezug'!$G$11,IF(E12='AZA Bezug'!$D$12,'AZA Bezug'!$G$12,IF(E12='AZA Bezug'!$D$13,'AZA Bezug'!$G$13,IF(E12='AZA Bezug'!$D$14,'AZA Bezug'!$G$14,IF(E12='AZA Bezug'!$D$15,'AZA Bezug'!$G$15,IF(E12='AZA Bezug'!$D$16,'AZA Bezug'!$G$16,IF(E12='AZA Bezug'!$D$17,'AZA Bezug'!$G$17,IF(E12='AZA Bezug'!$D$18,'AZA Bezug'!$G$18,IF(E12='AZA Bezug'!$D$19,'AZA Bezug'!$G$19,IF(E12='AZA Bezug'!$D$20,'AZA Bezug'!$G$20,IF(E12='AZA Bezug'!$D$21,'AZA Bezug'!$G$21,IF(E12='AZA Bezug'!$D$22,'AZA Bezug'!$G$22,\"-\"))))))))))))))))))","v":"-"},null,null,null,0,null,null,null,null,0]
[null,5,"-",null,"-",null,null,null,null,null,null,null,null,null,null,null,null,null,null,null,{"$f":"IF(E13='AZA Bezug'!$D$5,'AZA Bezug'!$F$5,IF(E13='AZA Bezug'!$D$6,'AZA Bezug'!$F$6,IF(E13='AZA Bezug'!$D$7,'AZA Bezug'!$F$7,IF(E13='AZA Bezug'!$D$8,'AZA Bezug'!$F$8,IF(E13='AZA Bezug'!$D$9,'AZA Bezug'!$F$9,IF(E13='AZA Bezug'!$D$10,'AZA Bezug'!$F$10,IF(E13='AZA Bezug'!$D$11,'AZA Bezug'!$F$11,IF(E13='AZA Bezug'!$D$12,'AZA Bezug'!$F$12,IF(E13='AZA Bezug'!$D$13,'AZA Bezug'!$F$13,IF(E13='AZA Bezug'!$D$14,'AZA Bezug'!$F$14,IF(E13='AZA Bezug'!$D$15,'AZA Bezug'!$F$15,IF(E13='AZA Bezug'!$D$16,'AZA Bezug'!$F$16,IF(E13='AZA Bezug'!$D$17,'AZA Bezug'!$F$17,IF(E13='AZA Bezug'!$D$18,'AZA Bezug'!$F$18,IF(E13='AZA Bezug'!$D$19,'AZA Bezug'!$F$19,IF(E13='AZA Bezug'!$D$20,'AZA Bezug'!$F$20,IF(E13='AZA Bezug'!$D$21,'AZA Bezug'!$F$21,IF(E13='AZA Bezug'!$D$22,'AZA Bezug'!$F$22,\"-\"))))))))))))))))))","v":"-"},null,{"$f":"IF(E13='AZA Bezug'!$D$5,'AZA Bezug'!$G$5,IF(E13='AZA Bezug'!$D$6,'AZA Bezug'!$G$6,IF(E13='AZA Bezug'!$D$7,'AZA Bezug'!$G$7,IF(E13='AZA Bezug'!$D$8,'AZA Bezug'!$G$8,IF(E13='AZA Bezug'!$D$9,'AZA Bezug'!$G$9,IF(E13='AZA Bezug'!$D$10,'AZA Bezug'!$G$10,IF(E13='AZA Bezug'!$D$11,'AZA Bezug'!$G$11,IF(E13='AZA Bezug'!$D$12,'AZA Bezug'!$G$12,IF(E13='AZA Bezug'!$D$13,'AZA Bezug'!$G$13,IF(E13='AZA Bezug'!$D$14,'AZA Bezug'!$G$14,IF(E13='AZA Bezug'!$D$15,'AZA Bezug'!$G$15,IF(E13='AZA Bezug'!$D$16,'AZA Bezug'!$G$16,IF(E13='AZA Bezug'!$D$17,'AZA Bezug'!$G$17,IF(E13='AZA Bezug'!$D$18,'AZA Bezug'!$G$18,IF(E13='AZA Bezug'!$D$19,'AZA Bezug'!$G$19,IF(E13='AZA Bezug'!$D$20,'AZA Bezug'!$G$20,IF(E13='AZA Bezug'!$D$21,'AZA Bezug'!$G$21,IF(E13='AZA Bezug'!$D$22,'AZA Bezug'!$G$22,\"-\"))))))))))))))))))","v":"-"},null,null,null,0,null,null,null,null,0]
[null,6,"-",null,"-",null,null,null,null,null,null,null,null,null,null,null,null,null,null,null,{"$f":"IF(E14='AZA Bezug'!$D$5,'AZA Bezug'!$F$5,IF(E14='AZA Bezug'!$D$6,'AZA Bezug'!$F$6,IF(E14='AZA Bezug'!$D$7,'AZA Bezug'!$F$7,IF(E14='AZA Bezug'!$D$8,'AZA Bezug'!$F$8,IF(E14='AZA Bezug'!$D$9,'AZA Bezug'!$F$9,IF(E14='AZA Bezug'!$D$10,'AZA Bezug'!$F$10,IF(E14='AZA Bezug'!$D$11,'AZA Bezug'!$F$11,IF(E14='AZA Bezug'!$D$12,'AZA Bezug'!$F$12,IF(E14='AZA Bezug'!$D$13,'AZA Bezug'!$F$13,IF(E14='AZA Bezug'!$D$14,'AZA Bezug'!$F$14,IF(E14='AZA Bezug'!$D$15,'AZA Bezug'!$F$15,IF(E14='AZA Bezug'!$D$16,'AZA Bezug'!$F$16,IF(E14='AZA Bezug'!$D$17,'AZA Bezug'!$F$17,IF(E14='AZA Bezug'!$D$18,'AZA Bezug'!$F$18,IF(E14='AZA Bezug'!$D$19,'AZA Bezug'!$F$19,IF(E14='AZA Bezug'!$D$20,'AZA Bezug'!$F$20,IF(E14='AZA Bezug'!$D$21,'AZA Bezug'!$F$21,IF(E14='AZA Bezug'!$D$22,'AZA Bezug'!$F$22,\"-\"))))))))))))))))))","v":"-"},null,{"$f":"IF(E14='AZA Bezug'!$D$5,'AZA Bezug'!$G$5,IF(E14='AZA Bezug'!$D$6,'AZA Bezug'!$G$6,IF(E14='AZA Bezug'!$D$7,'AZA Bezug'!$G$7,IF(E14='AZA Bezug'!$D$8,'AZA Bezug'!$G$8,IF(E14='AZA Bezug'!$D$9,'AZA Bezug'!$G$9,IF(E14='AZA Bezug'!$D$10,'AZA Bezug'!$G$10,IF(E14='AZA Bezug'!$D$11,'AZA Bezug'!$G$11,IF(E14='AZA Bezug'!$D$12,'AZA Bezug'!$G$12,IF(E14='AZA Bezug'!$D$13,'AZA Bezug'!$G$13,IF(E14='AZA Bezug'!$D$14,'AZA Bezug'!$G$14,IF(E14='AZA Bezug'!$D$15,'AZA Bezug'!$G$15,IF(E14='AZA Bezug'!$D$16,'AZA Bezug'!$G$16,IF(E14='AZA Bezug'!$D$17,'AZA Bezug'!$G$17,IF(E14='AZA Bezug'!$D$18,'AZA Bezug'!$G$18,IF(E14='AZA Bezug'!$D$19,'AZA Bezug'!$G$19,IF(E14='AZA Bezug'!$D$20,'AZA Bezug'!$G$20,IF(E14='AZA Bezug'!$D$21,'AZA Bezug'!$G$21,IF(E14='AZA Bezug'!$D$22,'AZA Bezug'!$G$22,\"-\"))))))))))))))))))","v":"-"},null,null,null,0,null,null,null,null,0]
[null,7,"-",null,"-",null,null,null,null,null,null,null,null,null,null,null,null,null,null,null,{"$f":"IF(E15='AZA Bezug'!$D$5,'AZA Bezug'!$F$5,IF(E15='AZA Bezug'!$D$6,'AZA Bezug'!$F$6,IF(E15='AZA Bezug'!$D$7,'AZA Bezug'!$F$7,IF(E15='AZA Bezug'!$D$8,'AZA Bezug'!$F$8,IF(E15='AZA Bezug'!$D$9,'AZA Bezug'!$F$9,IF(E15='AZA Bezug'!$D$10,'AZA Bezug'!$F$10,IF(E15='AZA Bezug'!$D$11,'AZA Bezug'!$F$11,IF(E15='AZA Bezug'!$D$12,'AZA Bezug'!$F$12,IF(E15='AZA Bezug'!$D$13,'AZA Bezug'!$F$13,IF(E15='AZA Bezug'!$D$14,'AZA Bezug'!$F$14,IF(E15='AZA Bezug'!$D$15,'AZA Bezug'!$F$15,IF(E15='AZA Bezug'!$D$16,'AZA Bezug'!$F$16,IF(E15='AZA Bezug'!$D$17,'AZA Bezug'!$F$17,IF(E15='AZA Bezug'!$D$18,'AZA Bezug'!$F$18,IF(E15='AZA Bezug'!$D$19,'AZA Bezug'!$F$19,IF(E15='AZA Bezug'!$D$20,'AZA Bezug'!$F$20,IF(E15='AZA Bezug'!$D$21,'AZA Bezug'!$F$21,IF(E15='AZA Bezug'!$D$22,'AZA Bezug'!$F$22,\"-\"))))))))))))))))))","v":"-"},null,{"$f":"IF(E15='AZA Bezug'!$D$5,'AZA Bezug'!$G$5,IF(E15='AZA Bezug'!$D$6,'AZA Bezug'!$G$6,IF(E15='AZA Bezug'!$D$7,'AZA Bezug'!$G$7,IF(E15='AZA Bezug'!$D$8,'AZA Bezug'!$G$8,IF(E15='AZA Bezug'!$D$9,'AZA Bezug'!$G$9,IF(E15='AZA Bezug'!$D$10,'AZA Bezug'!$G$10,IF(E15='AZA Bezug'!$D$11,'AZA Bezug'!$G$11,IF(E15='AZA Bezug'!$D$12,'AZA Bezug'!$G$12,IF(E15='AZA Bezug'!$D$13,'AZA Bezug'!$G$13,IF(E15='AZA Bezug'!$D$14,'AZA Bezug'!$G$14,IF(E15='AZA Bezug'!$D$15,'AZA Bezug'!$G$15,IF(E15='AZA Bezug'!$D$16,'AZA Bezug'!$G$16,IF(E15='AZA Bezug'!$D$17,'AZA Bezug'!$G$17,IF(E15='AZA Bezug'!$D$18,'AZA Bezug'!$G$18,IF(E15='AZA Bezug'!$D$19,'AZA Bezug'!$G$19,IF(E15='AZA Bezug'!$D$20,'AZA Bezug'!$G$20,IF(E15='AZA Bezug'!$D$21,'AZA Bezug'!$G$21,IF(E15='AZA Bezug'!$D$22,'AZA Bezug'!$G$22,\"-\"))))))))))))))))))","v":"-"},null,null,null,0,null,null,null,null,0]
[null,8,"-",null,"-",null,null,null,null,null,null,null,null,null,null,null,null,null,null,null,{"$f":"IF(E16='AZA Bezug'!$D$5,'AZA Bezug'!$F$5,IF(E16='AZA Bezug'!$D$6,'AZA Bezug'!$F$6,IF(E16='AZA Bezug'!$D$7,'AZA Bezug'!$F$7,IF(E16='AZA Bezug'!$D$8,'AZA Bezug'!$F$8,IF(E16='AZA Bezug'!$D$9,'AZA Bezug'!$F$9,IF(E16='AZA Bezug'!$D$10,'AZA Bezug'!$F$10,IF(E16='AZA Bezug'!$D$11,'AZA Bezug'!$F$11,IF(E16='AZA Bezug'!$D$12,'AZA Bezug'!$F$12,IF(E16='AZA Bezug'!$D$13,'AZA Bezug'!$F$13,IF(E16='AZA Bezug'!$D$14,'AZA Bezug'!$F$14,IF(E16='AZA Bezug'!$D$15,'AZA Bezug'!$F$15,IF(E16='AZA Bezug'!$D$16,'AZA Bezug'!$F$16,IF(E16='AZA Bezug'!$D$17,'AZA Bezug'!$F$17,IF(E16='AZA Bezug'!$D$18,'AZA Bezug'!$F$18,IF(E16='AZA Bezug'!$D$19,'AZA Bezug'!$F$19,IF(E16='AZA Bezug'!$D$20,'AZA Bezug'!$F$20,IF(E16='AZA Bezug'!$D$21,'AZA Bezug'!$F$21,IF(E16='AZA Bezug'!$D$22,'AZA Bezug'!$F$22,\"-\"))))))))))))))))))","v":"-"},null,{"$f":"IF(E16='AZA Bezug'!$D$5,'AZA Bezug'!$G$5,IF(E16='AZA Bezug'!$D$6,'AZA Bezug'!$G$6,IF(E16='AZA Bezug'!$D$7,'AZA Bezug'!$G$7,IF(E16='AZA Bezug'!$D$8,'AZA Bezug'!$G$8,IF(E16='AZA Bezug'!$D$9,'AZA Bezug'!$G$9,IF(E16='AZA Bezug'!$D$10,'AZA Bezug'!$G$10,IF(E16='AZA Bezug'!$D$11,'AZA Bezug'!$G$11,IF(E16='AZA Bezug'!$D$12,'AZA Bezug'!$G$12,IF(E16='AZA Bezug'!$D$13,'AZA Bezug'!$G$13,IF(E16='AZA Bezug'!$D$14,'AZA Bezug'!$G$14,IF(E16='AZA Bezug'!$D$15,'AZA Bezug'!$G$15,IF(E16='AZA Bezug'!$D$16,'AZA Bezug'!$G$16,IF(E16='AZA Bezug'!$D$17,'AZA Bezug'!$G$17,IF(E16='AZA Bezug'!$D$18,'AZA Bezug'!$G$18,IF(E16='AZA Bezug'!$D$19,'AZA Bezug'!$G$19,IF(E16='AZA Bezug'!$D$20,'AZA Bezug'!$G$20,IF(E16='AZA Bezug'!$D$21,'AZA Bezug'!$G$21,IF(E16='AZA Bezug'!$D$22,'AZA Bezug'!$G$22,\"-\"))))))))))))))))))","v":"-"},null,null,null,0,null,null,null,null,0]
[null,9,"-",null,"-",null,null,null,null,null,null,null,null,null,null,null,null,null,null,null,{"$f":"IF(E17='AZA Bezug'!$D$5,'AZA Bezug'!$F$5,IF(E17='AZA Bezug'!$D$6,'AZA Bezug'!$F$6,IF(E17='AZA Bezug'!$D$7,'AZA Bezug'!$F$7,IF(E17='AZA Bezug'!$D$8,'AZA Bezug'!$F$8,IF(E17='AZA Bezug'!$D$9,'AZA Bezug'!$F$9,IF(E17='AZA Bezug'!$D$10,'AZA Bezug'!$F$10,IF(E17='AZA Bezug'!$D$11,'AZA Bezug'!$F$11,IF(E17='AZA Bezug'!$D$12,'AZA Bezug'!$F$12,IF(E17='AZA Bezug'!$D$13,'AZA Bezug'!$F$13,IF(E17='AZA Bezug'!$D$14,'AZA Bezug'!$F$14,IF(E17='AZA Bezug'!$D$15,'AZA Bezug'!$F$15,IF(E17='AZA Bezug'!$D$16,'AZA Bezug'!$F$16,IF(E17='AZA Bezug'!$D$17,'AZA Bezug'!$F$17,IF(E17='AZA Bezug'!$D$18,'AZA Bezug'!$F$18,IF(E17='AZA Bezug'!$D$19,'AZA Bezug'!$F$19,IF(E17='AZA Bezug'!$D$20,'AZA Bezug'!$F$20,IF(E17='AZA Bezug'!$D$21,'AZA Bezug'!$F$21,IF(E17='AZA Bezug'!$D$22,'AZA Bezug'!$F$22,\"-\"))))))))))))))))))","v":"-"},null,{"$f":"IF(E17='AZA Bezug'!$D$5,'AZA Bezug'!$G$5,IF(E17='AZA Bezug'!$D$6,'AZA Bezug'!$G$6,IF(E17='AZA Bezug'!$D$7,'AZA Bezug'!$G$7,IF(E17='AZA Bezug'!$D$8,'AZA Bezug'!$G$8,IF(E17='AZA Bezug'!$D$9,'AZA Bezug'!$G$9,IF(E17='AZA Bezug'!$D$10,'AZA Bezug'!$G$10,IF(E17='AZA Bezug'!$D$11,'AZA Bezug'!$G$11,IF(E17='AZA Bezug'!$D$12,'AZA Bezug'!$G$12,IF(E17='AZA Bezug'!$D$13,'AZA Bezug'!$G$13,IF(E17='AZA Bezug'!$D$14,'AZA Bezug'!$G$14,IF(E17='AZA Bezug'!$D$15,'AZA Bezug'!$G$15,IF(E17='AZA Bezug'!$D$16,'AZA Bezug'!$G$16,IF(E17='AZA Bezug'!$D$17,'AZA Bezug'!$G$17,IF(E17='AZA Bezug'!$D$18,'AZA Bezug'!$G$18,IF(E17='AZA Bezug'!$D$19,'AZA Bezug'!$G$19,IF(E17='AZA Bezug'!$D$20,'AZA Bezug'!$G$20,IF(E17='AZA Bezug'!$D$21,'AZA Bezug'!$G$21,IF(E17='AZA Bezug'!$D$22,'AZA Bezug'!$G$22,\"-\"))))))))))))))))))","v":"-"},null,null,null,0,null,null,null,null,0]
[null,10,"-",null,"-",null,null,null,null,null,null,null,null,null,null,null,null,null,null,null,{"$f":"IF(E18='AZA Bezug'!$D$5,'AZA Bezug'!$F$5,IF(E18='AZA Bezug'!$D$6,'AZA Bezug'!$F$6,IF(E18='AZA Bezug'!$D$7,'AZA Bezug'!$F$7,IF(E18='AZA Bezug'!$D$8,'AZA Bezug'!$F$8,IF(E18='AZA Bezug'!$D$9,'AZA Bezug'!$F$9,IF(E18='AZA Bezug'!$D$10,'AZA Bezug'!$F$10,IF(E18='AZA Bezug'!$D$11,'AZA Bezug'!$F$11,IF(E18='AZA Bezug'!$D$12,'AZA Bezug'!$F$12,IF(E18='AZA Bezug'!$D$13,'AZA Bezug'!$F$13,IF(E18='AZA Bezug'!$D$14,'AZA Bezug'!$F$14,IF(E18='AZA Bezug'!$D$15,'AZA Bezug'!$F$15,IF(E18='AZA Bezug'!$D$16,'AZA Bezug'!$F$16,IF(E18='AZA Bezug'!$D$17,'AZA Bezug'!$F$17,IF(E18='AZA Bezug'!$D$18,'AZA Bezug'!$F$18,IF(E18='AZA Bezug'!$D$19,'AZA Bezug'!$F$19,IF(E18='AZA Bezug'!$D$20,'AZA Bezug'!$F$20,IF(E18='AZA Bezug'!$D$21,'AZA Bezug'!$F$21,IF(E18='AZA Bezug'!$D$22,'AZA Bezug'!$F$22,\"-\"))))))))))))))))))","v":"-"},null,{"$f":"IF(E18='AZA Bezug'!$D$5,'AZA Bezug'!$G$5,IF(E18='AZA Bezug'!$D$6,'AZA Bezug'!$G$6,IF(E18='AZA Bezug'!$D$7,'AZA Bezug'!$G$7,IF(E18='AZA Bezug'!$D$8,'AZA Bezug'!$G$8,IF(E18='AZA Bezug'!$D$9,'AZA Bezug'!$G$9,IF(E18='AZA Bezug'!$D$10,'AZA Bezug'!$G$10,IF(E18='AZA Bezug'!$D$11,'AZA Bezug'!$G$11,IF(E18='AZA Bezug'!$D$12,'AZA Bezug'!$G$12,IF(E18='AZA Bezug'!$D$13,'AZA Bezug'!$G$13,IF(E18='AZA Bezug'!$D$14,'AZA Bezug'!$G$14,IF(E18='AZA Bezug'!$D$15,'AZA Bezug'!$G$15,IF(E18='AZA Bezug'!$D$16,'AZA Bezug'!$G$16,IF(E18='AZA Bezug'!$D$17,'AZA Bezug'!$G$17,IF(E18='AZA Bezug'!$D$18,'AZA Bezug'!$G$18,IF(E18='AZA Bezug'!$D$19,'AZA Bezug'!$G$19,IF(E18='AZA Bezug'!$D$20,'AZA Bezug'!$G$20,IF(E18='AZA Bezug'!$D$21,'AZA Bezug'!$G$21,IF(E18='AZA Bezug'!$D$22,'AZA Bezug'!$G$22,\"-\"))))))))))))))))))","v":"-"},null,null,null,0,null,null,null,null,0]
[null,11,"-",null,"-",null,null,null,null,null,null,null,null,null,null,null,null,null,null,null,{"$f":"IF(E19='AZA Bezug'!$D$5,'AZA Bezug'!$F$5,IF(E19='AZA Bezug'!$D$6,'AZA Bezug'!$F$6,IF(E19='AZA Bezug'!$D$7,'AZA Bezug'!$F$7,IF(E19='AZA Bezug'!$D$8,'AZA Bezug'!$F$8,IF(E19='AZA Bezug'!$D$9,'AZA Bezug'!$F$9,IF(E19='AZA Bezug'!$D$10,'AZA Bezug'!$F$10,IF(E19='AZA Bezug'!$D$11,'AZA Bezug'!$F$11,IF(E19='AZA Bezug'!$D$12,'AZA Bezug'!$F$12,IF(E19='AZA Bezug'!$D$13,'AZA Bezug'!$F$13,IF(E19='AZA Bezug'!$D$14,'AZA Bezug'!$F$14,IF(E19='AZA Bezug'!$D$15,'AZA Bezug'!$F$15,IF(E19='AZA Bezug'!$D$16,'AZA Bezug'!$F$16,IF(E19='AZA Bezug'!$D$17,'AZA Bezug'!$F$17,IF(E19='AZA Bezug'!$D$18,'AZA Bezug'!$F$18,IF(E19='AZA Bezug'!$D$19,'AZA Bezug'!$F$19,IF(E19='AZA Bezug'!$D$20,'AZA Bezug'!$F$20,IF(E19='AZA Bezug'!$D$21,'AZA Bezug'!$F$21,IF(E19='AZA Bezug'!$D$22,'AZA Bezug'!$F$22,\"-\"))))))))))))))))))","v":"-"},null,{"$f":"IF(E19='AZA Bezug'!$D$5,'AZA Bezug'!$G$5,IF(E19='AZA Bezug'!$D$6,'AZA Bezug'!$G$6,IF(E19='AZA Bezug'!$D$7,'AZA Bezug'!$G$7,IF(E19='AZA Bezug'!$D$8,'AZA Bezug'!$G$8,IF(E19='AZA Bezug'!$D$9,'AZA Bezug'!$G$9,IF(E19='AZA Bezug'!$D$10,'AZA Bezug'!$G$10,IF(E19='AZA Bezug'!$D$11,'AZA Bezug'!$G$11,IF(E19='AZA Bezug'!$D$12,'AZA Bezug'!$G$12,IF(E19='AZA Bezug'!$D$13,'AZA Bezug'!$G$13,IF(E19='AZA Bezug'!$D$14,'AZA Bezug'!$G$14,IF(E19='AZA Bezug'!$D$15,'AZA Bezug'!$G$15,IF(E19='AZA Bezug'!$D$16,'AZA Bezug'!$G$16,IF(E19='AZA Bezug'!$D$17,'AZA Bezug'!$G$17,IF(E19='AZA Bezug'!$D$18,'AZA Bezug'!$G$18,IF(E19='AZA Bezug'!$D$19,'AZA Bezug'!$G$19,IF(E19='AZA Bezug'!$D$20,'AZA Bezug'!$G$20,IF(E19='AZA Bezug'!$D$21,'AZA Bezug'!$G$21,IF(E19='AZA Bezug'!$D$22,'AZA Bezug'!$G$22,\"-\"))))))))))))))))))","v":"-"},null,null,null,0,null,null,null,null,0]
[null,12,"-",null,"-",null,null,null,null,null,null,null,null,null,null,null,null,null,null,null,{"$f":"IF(E20='AZA Bezug'!$D$5,'AZA Bezug'!$F$5,IF(E20='AZA Bezug'!$D$6,'AZA Bezug'!$F$6,IF(E20='AZA Bezug'!$D$7,'AZA Bezug'!$F$7,IF(E20='AZA Bezug'!$D$8,'AZA Bezug'!$F$8,IF(E20='AZA Bezug'!$D$9,'AZA Bezug'!$F$9,IF(E20='AZA Bezug'!$D$10,'AZA Bezug'!$F$10,IF(E20='AZA Bezug'!$D$11,'AZA Bezug'!$F$11,IF(E20='AZA Bezug'!$D$12,'AZA Bezug'!$F$12,IF(E20='AZA Bezug'!$D$13,'AZA Bezug'!$F$13,IF(E20='AZA Bezug'!$D$14,'AZA Bezug'!$F$14,IF(E20='AZA Bezug'!$D$15,'AZA Bezug'!$F$15,IF(E20='AZA Bezug'!$D$16,'AZA Bezug'!$F$16,IF(E20='AZA Bezug'!$D$17,'AZA Bezug'!$F$17,IF(E20='AZA Bezug'!$D$18,'AZA Bezug'!$F$18,IF(E20='AZA Bezug'!$D$19,'AZA Bezug'!$F$19,IF(E20='AZA Bezug'!$D$20,'AZA Bezug'!$F$20,IF(E20='AZA Bezug'!$D$21,'AZA Bezug'!$F$21,IF(E20='AZA Bezug'!$D$22,'AZA Bezug'!$F$22,\"-\"))))))))))))))))))","v":"-"},null,{"$f":"IF(E20='AZA Bezug'!$D$5,'AZA Bezug'!$G$5,IF(E20='AZA Bezug'!$D$6,'AZA Bezug'!$G$6,IF(E20='AZA Bezug'!$D$7,'AZA Bezug'!$G$7,IF(E20='AZA Bezug'!$D$8,'AZA Bezug'!$G$8,IF(E20='AZA Bezug'!$D$9,'AZA Bezug'!$G$9,IF(E20='AZA Bezug'!$D$10,'AZA Bezug'!$G$10,IF(E20='AZA Bezug'!$D$11,'AZA Bezug'!$G$11,IF(E20='AZA Bezug'!$D$12,'AZA Bezug'!$G$12,IF(E20='AZA Bezug'!$D$13,'AZA Bezug'!$G$13,IF(E20='AZA Bezug'!$D$14,'AZA Bezug'!$G$14,IF(E20='AZA Bezug'!$D$15,'AZA Bezug'!$G$15,IF(E20='AZA Bezug'!$D$16,'AZA Bezug'!$G$16,IF(E20='AZA Bezug'!$D$17,'AZA Bezug'!$G$17,IF(E20='AZA Bezug'!$D$18,'AZA Bezug'!$G$18,IF(E20='AZA Bezug'!$D$19,'AZA Bezug'!$G$19,IF(E20='AZA Bezug'!$D$20,'AZA Bezug'!$G$20,IF(E20='AZA Bezug'!$D$21,'AZA Bezug'!$G$21,IF(E20='AZA Bezug'!$D$22,'AZA Bezug'!$G$22,\"-\"))))))))))))))))))","v":"-"},null,null,null,0,null,null,null,null,0]
[null,13,"-",null,"-",null,null,null,null,null,null,null,null,null,null,null,null,null,null,null,{"$f":"IF(E21='AZA Bezug'!$D$5,'AZA Bezug'!$F$5,IF(E21='AZA Bezug'!$D$6,'AZA Bezug'!$F$6,IF(E21='AZA Bezug'!$D$7,'AZA Bezug'!$F$7,IF(E21='AZA Bezug'!$D$8,'AZA Bezug'!$F$8,IF(E21='AZA Bezug'!$D$9,'AZA Bezug'!$F$9,IF(E21='AZA Bezug'!$D$10,'AZA Bezug'!$F$10,IF(E21='AZA Bezug'!$D$11,'AZA Bezug'!$F$11,IF(E21='AZA Bezug'!$D$12,'AZA Bezug'!$F$12,IF(E21='AZA Bezug'!$D$13,'AZA Bezug'!$F$13,IF(E21='AZA Bezug'!$D$14,'AZA Bezug'!$F$14,IF(E21='AZA Bezug'!$D$15,'AZA Bezug'!$F$15,IF(E21='AZA Bezug'!$D$16,'AZA Bezug'!$F$16,IF(E21='AZA Bezug'!$D$17,'AZA Bezug'!$F$17,IF(E21='AZA Bezug'!$D$18,'AZA Bezug'!$F$18,IF(E21='AZA Bezug'!$D$19,'AZA Bezug'!$F$19,IF(E21='AZA Bezug'!$D$20,'AZA Bezug'!$F$20,IF(E21='AZA Bezug'!$D$21,'AZA Bezug'!$F$21,IF(E21='AZA Bezug'!$D$22,'AZA Bezug'!$F$22,\"-\"))))))))))))))))))","v":"-"},null,{"$f":"IF(E21='AZA Bezug'!$D$5,'AZA Bezug'!$G$5,IF(E21='AZA Bezug'!$D$6,'AZA Bezug'!$G$6,IF(E21='AZA Bezug'!$D$7,'AZA Bezug'!$G$7,IF(E21='AZA Bezug'!$D$8,'AZA Bezug'!$G$8,IF(E21='AZA Bezug'!$D$9,'AZA Bezug'!$G$9,IF(E21='AZA Bezug'!$D$10,'AZA Bezug'!$G$10,IF(E21='AZA Bezug'!$D$11,'AZA Bezug'!$G$11,IF(E21='AZA Bezug'!$D$12,'AZA Bezug'!$G$12,IF(E21='AZA Bezug'!$D$13,'AZA Bezug'!$G$13,IF(E21='AZA Bezug'!$D$14,'AZA Bezug'!$G$14,IF(E21='AZA Bezug'!$D$15,'AZA Bezug'!$G$15,IF(E21='AZA Bezug'!$D$16,'AZA Bezug'!$G$16,IF(E21='AZA Bezug'!$D$17,'AZA Bezug'!$G$17,IF(E21='AZA Bezug'!$D$18,'AZA Bezug'!$G$18,IF(E21='AZA Bezug'!$D$19,'AZA Bezug'!$G$19,IF(E21='AZA Bezug'!$D$20,'AZA Bezug'!$G$20,IF(E21='AZA Bezug'!$D$21,'AZA Bezug'!$G$21,IF(E21='AZA Bezug'!$D$22,'AZA Bezug'!$G$22,\"-\"))))))))))))))))))","v":"-"},null,null,null,0,null,null,null,null,0]
[null,14,"-",null,"-",null,null,null,null,null,null,null,null,null,null,null,null,null,null,null,{"$f":"IF(E22='AZA Bezug'!$D$5,'AZA Bezug'!$F$5,IF(E22='AZA Bezug'!$D$6,'AZA Bezug'!$F$6,IF(E22='AZA Bezug'!$D$7,'AZA Bezug'!$F$7,IF(E22='AZA Bezug'!$D$8,'AZA Bezug'!$F$8,IF(E22='AZA Bezug'!$D$9,'AZA Bezug'!$F$9,IF(E22='AZA Bezug'!$D$10,'AZA Bezug'!$F$10,IF(E22='AZA Bezug'!$D$11,'AZA Bezug'!$F$11,IF(E22='AZA Bezug'!$D$12,'AZA Bezug'!$F$12,IF(E22='AZA Bezug'!$D$13,'AZA Bezug'!$F$13,IF(E22='AZA Bezug'!$D$14,'AZA Bezug'!$F$14,IF(E22='AZA Bezug'!$D$15,'AZA Bezug'!$F$15,IF(E22='AZA Bezug'!$D$16,'AZA Bezug'!$F$16,IF(E22='AZA Bezug'!$D$17,'AZA Bezug'!$F$17,IF(E22='AZA Bezug'!$D$18,'AZA Bezug'!$F$18,IF(E22='AZA Bezug'!$D$19,'AZA Bezug'!$F$19,IF(E22='AZA Bezug'!$D$20,'AZA Bezug'!$F$20,IF(E22='AZA Bezug'!$D$21,'AZA Bezug'!$F$21,IF(E22='AZA Bezug'!$D$22,'AZA Bezug'!$F$22,\"-\"))))))))))))))))))","v":"-"},null,{"$f":"IF(E22='AZA Bezug'!$D$5,'AZA Bezug'!$G$5,IF(E22='AZA Bezug'!$D$6,'AZA Bezug'!$G$6,IF(E22='AZA Bezug'!$D$7,'AZA Bezug'!$G$7,IF(E22='AZA Bezug'!$D$8,'AZA Bezug'!$G$8,IF(E22='AZA Bezug'!$D$9,'AZA Bezug'!$G$9,IF(E22='AZA Bezug'!$D$10,'AZA Bezug'!$G$10,IF(E22='AZA Bezug'!$D$11,'AZA Bezug'!$G$11,IF(E22='AZA Bezug'!$D$12,'AZA Bezug'!$G$12,IF(E22='AZA Bezug'!$D$13,'AZA Bezug'!$G$13,IF(E22='AZA Bezug'!$D$14,'AZA Bezug'!$G$14,IF(E22='AZA Bezug'!$D$15,'AZA Bezug'!$G$15,IF(E22='AZA Bezug'!$D$16,'AZA Bezug'!$G$16,IF(E22='AZA Bezug'!$D$17,'AZA Bezug'!$G$17,IF(E22='AZA Bezug'!$D$18,'AZA Bezug'!$G$18,IF(E22='AZA Bezug'!$D$19,'AZA Bezug'!$G$19,IF(E22='AZA Bezug'!$D$20,'AZA Bezug'!$G$20,IF(E22='AZA Bezug'!$D$21,'AZA Bezug'!$G$21,IF(E22='AZA Bezug'!$D$22,'AZA Bezug'!$G$22,\"-\"))))))))))))))))))","v":"-"},null,null,null,0,null,null,null,null,0]
[null,15,"-",null,"-",null,null,null,null,null,null,null,null,null,null,null,null,null,null,null,{"$f":"IF(E23='AZA Bezug'!$D$5,'AZA Bezug'!$F$5,IF(E23='AZA Bezug'!$D$6,'AZA Bezug'!$F$6,IF(E23='AZA Bezug'!$D$7,'AZA Bezug'!$F$7,IF(E23='AZA Bezug'!$D$8,'AZA Bezug'!$F$8,IF(E23='AZA Bezug'!$D$9,'AZA Bezug'!$F$9,IF(E23='AZA Bezug'!$D$10,'AZA Bezug'!$F$10,IF(E23='AZA Bezug'!$D$11,'AZA Bezug'!$F$11,IF(E23='AZA Bezug'!$D$12,'AZA Bezug'!$F$12,IF(E23='AZA Bezug'!$D$13,'AZA Bezug'!$F$13,IF(E23='AZA Bezug'!$D$14,'AZA Bezug'!$F$14,IF(E23='AZA Bezug'!$D$15,'AZA Bezug'!$F$15,IF(E23='AZA Bezug'!$D$16,'AZA Bezug'!$F$16,IF(E23='AZA Bezug'!$D$17,'AZA Bezug'!$F$17,IF(E23='AZA Bezug'!$D$18,'AZA Bezug'!$F$18,IF(E23='AZA Bezug'!$D$19,'AZA Bezug'!$F$19,IF(E23='AZA Bezug'!$D$20,'AZA Bezug'!$F$20,IF(E23='AZA Bezug'!$D$21,'AZA Bezug'!$F$21,IF(E23='AZA Bezug'!$D$22,'AZA Bezug'!$F$22,\"-\"))))))))))))))))))","v":"-"},null,{"$f":"IF(E23='AZA Bezug'!$D$5,'AZA Bezug'!$G$5,IF(E23='AZA Bezug'!$D$6,'AZA Bezug'!$G$6,IF(E23='AZA Bezug'!$D$7,'AZA Bezug'!$G$7,IF(E23='AZA Bezug'!$D$8,'AZA Bezug'!$G$8,IF(E23='AZA Bezug'!$D$9,'AZA Bezug'!$G$9,IF(E23='AZA Bezug'!$D$10,'AZA Bezug'!$G$10,IF(E23='AZA Bezug'!$D$11,'AZA Bezug'!$G$11,IF(E23='AZA Bezug'!$D$12,'AZA Bezug'!$G$12,IF(E23='AZA Bezug'!$D$13,'AZA Bezug'!$G$13,IF(E23='AZA Bezug'!$D$14,'AZA Bezug'!$G$14,IF(E23='AZA Bezug'!$D$15,'AZA Bezug'!$G$15,IF(E23='AZA Bezug'!$D$16,'AZA Bezug'!$G$16,IF(E23='AZA Bezug'!$D$17,'AZA Bezug'!$G$17,IF(E23='AZA Bezug'!$D$18,'AZA Bezug'!$G$18,IF(E23='AZA Bezug'!$D$19,'AZA Bezug'!$G$19,IF(E23='AZA Bezug'!$D$20,'AZA Bezug'!$G$20,IF(E23='AZA Bezug'!$D$21,'AZA Bezug'!$G$21,IF(E23='AZA Bezug'!$D$22,'AZA Bezug'!$G$22,\"-\"))))))))))))))))))","v":"-"},null,null,null,0,null,null,null,null,0]
[null,16,"-",null,"-",null,null,null,null,null,null,null,null,null,null,null,null,null,null,null,{"$f":"IF(E24='AZA Bezug'!$D$5,'AZA Bezug'!$F$5,IF(E24='AZA Bezug'!$D$6,'AZA Bezug'!$F$6,IF(E24='AZA Bezug'!$D$7,'AZA Bezug'!$F$7,IF(E24='AZA Bezug'!$D$8,'AZA Bezug'!$F$8,IF(E24='AZA Bezug'!$D$9,'AZA Bezug'!$F$9,IF(E24='AZA Bezug'!$D$10,'AZA Bezug'!$F$10,IF(E24='AZA Bezug'!$D$11,'AZA Bezug'!$F$11,IF(E24='AZA Bezug'!$D$12,'AZA Bezug'!$F$12,IF(E24='AZA Bezug'!$D$13,'AZA Bezug'!$F$13,IF(E24='AZA Bezug'!$D$14,'AZA Bezug'!$F$14,IF(E24='AZA Bezug'!$D$15,'AZA Bezug'!$F$15,IF(E24='AZA Bezug'!$D$16,'AZA Bezug'!$F$16,IF(E24='AZA Bezug'!$D$17,'AZA Bezug'!$F$17,IF(E24='AZA Bezug'!$D$18,'AZA Bezug'!$F$18,IF(E24='AZA Bezug'!$D$19,'AZA Bezug'!$F$19,IF(E24='AZA Bezug'!$D$20,'AZA Bezug'!$F$20,IF(E24='AZA Bezug'!$D$21,'AZA Bezug'!$F$21,IF(E24='AZA Bezug'!$D$22,'AZA Bezug'!$F$22,\"-\"))))))))))))))))))","v":"-"},null,{"$f":"IF(E24='AZA Bezug'!$D$5,'AZA Bezug'!$G$5,IF(E24='AZA Bezug'!$D$6,'AZA Bezug'!$G$6,IF(E24='AZA Bezug'!$D$7,'AZA Bezug'!$G$7,IF(E24='AZA Bezug'!$D$8,'AZA Bezug'!$G$8,IF(E24='AZA Bezug'!$D$9,'AZA Bezug'!$G$9,IF(E24='AZA Bezug'!$D$10,'AZA Bezug'!$G$10,IF(E24='AZA Bezug'!$D$11,'AZA Bezug'!$G$11,IF(E24='AZA Bezug'!$D$12,'AZA Bezug'!$G$12,IF(E24='AZA Bezug'!$D$13,'AZA Bezug'!$G$13,IF(E24='AZA Bezug'!$D$14,'AZA Bezug'!$G$14,IF(E24='AZA Bezug'!$D$15,'AZA Bezug'!$G$15,IF(E24='AZA Bezug'!$D$16,'AZA Bezug'!$G$16,IF(E24='AZA Bezug'!$D$17,'AZA Bezug'!$G$17,IF(E24='AZA Bezug'!$D$18,'AZA Bezug'!$G$18,IF(E24='AZA Bezug'!$D$19,'AZA Bezug'!$G$19,IF(E24='AZA Bezug'!$D$20,'AZA Bezug'!$G$20,IF(E24='AZA Bezug'!$D$21,'AZA Bezug'!$G$21,IF(E24='AZA Bezug'!$D$22,'AZA Bezug'!$G$22,\"-\"))))))))))))))))))","v":"-"},null,null,null,0,null,null,null,null,0]
[null,17,"-",null,"-",null,null,null,null,null,null,null,null,null,null,null,null,null,null,null,{"$f":"IF(E25='AZA Bezug'!$D$5,'AZA Bezug'!$F$5,IF(E25='AZA Bezug'!$D$6,'AZA Bezug'!$F$6,IF(E25='AZA Bezug'!$D$7,'AZA Bezug'!$F$7,IF(E25='AZA Bezug'!$D$8,'AZA Bezug'!$F$8,IF(E25='AZA Bezug'!$D$9,'AZA Bezug'!$F$9,IF(E25='AZA Bezug'!$D$10,'AZA Bezug'!$F$10,IF(E25='AZA Bezug'!$D$11,'AZA Bezug'!$F$11,IF(E25='AZA Bezug'!$D$12,'AZA Bezug'!$F$12,IF(E25='AZA Bezug'!$D$13,'AZA Bezug'!$F$13,IF(E25='AZA Bezug'!$D$14,'AZA Bezug'!$F$14,IF(E25='AZA Bezug'!$D$15,'AZA Bezug'!$F$15,IF(E25='AZA Bezug'!$D$16,'AZA Bezug'!$F$16,IF(E25='AZA Bezug'!$D$17,'AZA Bezug'!$F$17,IF(E25='AZA Bezug'!$D$18,'AZA Bezug'!$F$18,IF(E25='AZA Bezug'!$D$19,'AZA Bezug'!$F$19,IF(E25='AZA Bezug'!$D$20,'AZA Bezug'!$F$20,IF(E25='AZA Bezug'!$D$21,'AZA Bezug'!$F$21,IF(E25='AZA Bezug'!$D$22,'AZA Bezug'!$F$22,\"-\"))))))))))))))))))","v":"-"},null,{"$f":"IF(E25='AZA Bezug'!$D$5,'AZA Bezug'!$G$5,IF(E25='AZA Bezug'!$D$6,'AZA Bezug'!$G$6,IF(E25='AZA Bezug'!$D$7,'AZA Bezug'!$G$7,IF(E25='AZA Bezug'!$D$8,'AZA Bezug'!$G$8,IF(E25='AZA Bezug'!$D$9,'AZA Bezug'!$G$9,IF(E25='AZA Bezug'!$D$10,'AZA Bezug'!$G$10,IF(E25='AZA Bezug'!$D$11,'AZA Bezug'!$G$11,IF(E25='AZA Bezug'!$D$12,'AZA Bezug'!$G$12,IF(E25='AZA Bezug'!$D$13,'AZA Bezug'!$G$13,IF(E25='AZA Bezug'!$D$14,'AZA Bezug'!$G$14,IF(E25='AZA Bezug'!$D$15,'AZA Bezug'!$G$15,IF(E25='AZA Bezug'!$D$16,'AZA Bezug'!$G$16,IF(E25='AZA Bezug'!$D$17,'AZA Bezug'!$G$17,IF(E25='AZA Bezug'!$D$18,'AZA Bezug'!$G$18,IF(E25='AZA Bezug'!$D$19,'AZA Bezug'!$G$19,IF(E25='AZA Bezug'!$D$20,'AZA Bezug'!$G$20,IF(E25='AZA Bezug'!$D$21,'AZA Bezug'!$G$21,IF(E25='AZA Bezug'!$D$22,'AZA Bezug'!$G$22,\"-\"))))))))))))))))))","v":"-"},null,null,null,0,null,null,null,null,0]
[null,18,"-",null,"-",null,null,null,null,null,null,null,null,null,null,null,null,null,null,null,{"$f":"IF(E26='AZA Bezug'!$D$5,'AZA Bezug'!$F$5,IF(E26='AZA Bezug'!$D$6,'AZA Bezug'!$F$6,IF(E26='AZA Bezug'!$D$7,'AZA Bezug'!$F$7,IF(E26='AZA Bezug'!$D$8,'AZA Bezug'!$F$8,IF(E26='AZA Bezug'!$D$9,'AZA Bezug'!$F$9,IF(E26='AZA Bezug'!$D$10,'AZA Bezug'!$F$10,IF(E26='AZA Bezug'!$D$11,'AZA Bezug'!$F$11,IF(E26='AZA Bezug'!$D$12,'AZA Bezug'!$F$12,IF(E26='AZA Bezug'!$D$13,'AZA Bezug'!$F$13,IF(E26='AZA Bezug'!$D$14,'AZA Bezug'!$F$14,IF(E26='AZA Bezug'!$D$15,'AZA Bezug'!$F$15,IF(E26='AZA Bezug'!$D$16,'AZA Bezug'!$F$16,IF(E26='AZA Bezug'!$D$17,'AZA Bezug'!$F$17,IF(E26='AZA Bezug'!$D$18,'AZA Bezug'!$F$18,IF(E26='AZA Bezug'!$D$19,'AZA Bezug'!$F$19,IF(E26='AZA Bezug'!$D$20,'AZA Bezug'!$F$20,IF(E26='AZA Bezug'!$D$21,'AZA Bezug'!$F$21,IF(E26='AZA Bezug'!$D$22,'AZA Bezug'!$F$22,\"-\"))))))))))))))))))","v":"-"},null,{"$f":"IF(E26='AZA Bezug'!$D$5,'AZA Bezug'!$G$5,IF(E26='AZA Bezug'!$D$6,'AZA Bezug'!$G$6,IF(E26='AZA Bezug'!$D$7,'AZA Bezug'!$G$7,IF(E26='AZA Bezug'!$D$8,'AZA Bezug'!$G$8,IF(E26='AZA Bezug'!$D$9,'AZA Bezug'!$G$9,IF(E26='AZA Bezug'!$D$10,'AZA Bezug'!$G$10,IF(E26='AZA Bezug'!$D$11,'AZA Bezug'!$G$11,IF(E26='AZA Bezug'!$D$12,'AZA Bezug'!$G$12,IF(E26='AZA Bezug'!$D$13,'AZA Bezug'!$G$13,IF(E26='AZA Bezug'!$D$14,'AZA Bezug'!$G$14,IF(E26='AZA Bezug'!$D$15,'AZA Bezug'!$G$15,IF(E26='AZA Bezug'!$D$16,'AZA Bezug'!$G$16,IF(E26='AZA Bezug'!$D$17,'AZA Bezug'!$G$17,IF(E26='AZA Bezug'!$D$18,'AZA Bezug'!$G$18,IF(E26='AZA Bezug'!$D$19,'AZA Bezug'!$G$19,IF(E26='AZA Bezug'!$D$20,'AZA Bezug'!$G$20,IF(E26='AZA Bezug'!$D$21,'AZA Bezug'!$G$21,IF(E26='AZA Bezug'!$D$22,'AZA Bezug'!$G$22,\"-\"))))))))))))))))))","v":"-"},null,null,null,0,null,null,null,null,0]
[null,19,"-",null,"-",null,null,null,null,null,null,null,null,null,null,null,null,null,null,null,{"$f":"IF(E27='AZA Bezug'!$D$5,'AZA Bezug'!$F$5,IF(E27='AZA Bezug'!$D$6,'AZA Bezug'!$F$6,IF(E27='AZA Bezug'!$D$7,'AZA Bezug'!$F$7,IF(E27='AZA Bezug'!$D$8,'AZA Bezug'!$F$8,IF(E27='AZA Bezug'!$D$9,'AZA Bezug'!$F$9,IF(E27='AZA Bezug'!$D$10,'AZA Bezug'!$F$10,IF(E27='AZA Bezug'!$D$11,'AZA Bezug'!$F$11,IF(E27='AZA Bezug'!$D$12,'AZA Bezug'!$F$12,IF(E27='AZA Bezug'!$D$13,'AZA Bezug'!$F$13,IF(E27='AZA Bezug'!$D$14,'AZA Bezug'!$F$14,IF(E27='AZA Bezug'!$D$15,'AZA Bezug'!$F$15,IF(E27='AZA Bezug'!$D$16,'AZA Bezug'!$F$16,IF(E27='AZA Bezug'!$D$17,'AZA Bezug'!$F$17,IF(E27='AZA Bezug'!$D$18,'AZA Bezug'!$F$18,IF(E27='AZA Bezug'!$D$19,'AZA Bezug'!$F$19,IF(E27='AZA Bezug'!$D$20,'AZA Bezug'!$F$20,IF(E27='AZA Bezug'!$D$21,'AZA Bezug'!$F$21,IF(E27='AZA Bezug'!$D$22,'AZA Bezug'!$F$22,\"-\"))))))))))))))))))","v":"-"},null,{"$f":"IF(E27='AZA Bezug'!$D$5,'AZA Bezug'!$G$5,IF(E27='AZA Bezug'!$D$6,'AZA Bezug'!$G$6,IF(E27='AZA Bezug'!$D$7,'AZA Bezug'!$G$7,IF(E27='AZA Bezug'!$D$8,'AZA Bezug'!$G$8,IF(E27='AZA Bezug'!$D$9,'AZA Bezug'!$G$9,IF(E27='AZA Bezug'!$D$10,'AZA Bezug'!$G$10,IF(E27='AZA Bezug'!$D$11,'AZA Bezug'!$G$11,IF(E27='AZA Bezug'!$D$12,'AZA Bezug'!$G$12,IF(E27='AZA Bezug'!$D$13,'AZA Bezug'!$G$13,IF(E27='AZA Bezug'!$D$14,'AZA Bezug'!$G$14,IF(E27='AZA Bezug'!$D$15,'AZA Bezug'!$G$15,IF(E27='AZA Bezug'!$D$16,'AZA Bezug'!$G$16,IF(E27='AZA Bezug'!$D$17,'AZA Bezug'!$G$17,IF(E27='AZA Bezug'!$D$18,'AZA Bezug'!$G$18,IF(E27='AZA Bezug'!$D$19,'AZA Bezug'!$G$19,IF(E27='AZA Bezug'!$D$20,'AZA Bezug'!$G$20,IF(E27='AZA Bezug'!$D$21,'AZA Bezug'!$G$21,IF(E27='AZA Bezug'!$D$22,'AZA Bezug'!$G$22,\"-\"))))))))))))))))))","v":"-"},null,null,null,0,null,null,null,null,0]
[null,20,"-",null,"-",null,null,null,null,null,null,null,null,null,null,null,null,null,null,null,{"$f":"IF(E28='AZA Bezug'!$D$5,'AZA Bezug'!$F$5,IF(E28='AZA Bezug'!$D$6,'AZA Bezug'!$F$6,IF(E28='AZA Bezug'!$D$7,'AZA Bezug'!$F$7,IF(E28='AZA Bezug'!$D$8,'AZA Bezug'!$F$8,IF(E28='AZA Bezug'!$D$9,'AZA Bezug'!$F$9,IF(E28='AZA Bezug'!$D$10,'AZA Bezug'!$F$10,IF(E28='AZA Bezug'!$D$11,'AZA Bezug'!$F$11,IF(E28='AZA Bezug'!$D$12,'AZA Bezug'!$F$12,IF(E28='AZA Bezug'!$D$13,'AZA Bezug'!$F$13,IF(E28='AZA Bezug'!$D$14,'AZA Bezug'!$F$14,IF(E28='AZA Bezug'!$D$15,'AZA Bezug'!$F$15,IF(E28='AZA Bezug'!$D$16,'AZA Bezug'!$F$16,IF(E28='AZA Bezug'!$D$17,'AZA Bezug'!$F$17,IF(E28='AZA Bezug'!$D$18,'AZA Bezug'!$F$18,IF(E28='AZA Bezug'!$D$19,'AZA Bezug'!$F$19,IF(E28='AZA Bezug'!$D$20,'AZA Bezug'!$F$20,IF(E28='AZA Bezug'!$D$21,'AZA Bezug'!$F$21,IF(E28='AZA Bezug'!$D$22,'AZA Bezug'!$F$22,\"-\"))))))))))))))))))","v":"-"},null,{"$f":"IF(E28='AZA Bezug'!$D$5,'AZA Bezug'!$G$5,IF(E28='AZA Bezug'!$D$6,'AZA Bezug'!$G$6,IF(E28='AZA Bezug'!$D$7,'AZA Bezug'!$G$7,IF(E28='AZA Bezug'!$D$8,'AZA Bezug'!$G$8,IF(E28='AZA Bezug'!$D$9,'AZA Bezug'!$G$9,IF(E28='AZA Bezug'!$D$10,'AZA Bezug'!$G$10,IF(E28='AZA Bezug'!$D$11,'AZA Bezug'!$G$11,IF(E28='AZA Bezug'!$D$12,'AZA Bezug'!$G$12,IF(E28='AZA Bezug'!$D$13,'AZA Bezug'!$G$13,IF(E28='AZA Bezug'!$D$14,'AZA Bezug'!$G$14,IF(E28='AZA Bezug'!$D$15,'AZA Bezug'!$G$15,IF(E28='AZA Bezug'!$D$16,'AZA Bezug'!$G$16,IF(E28='AZA Bezug'!$D$17,'AZA Bezug'!$G$17,IF(E28='AZA Bezug'!$D$18,'AZA Bezug'!$G$18,IF(E28='AZA Bezug'!$D$19,'AZA Bezug'!$G$19,IF(E28='AZA Bezug'!$D$20,'AZA Bezug'!$G$20,IF(E28='AZA Bezug'!$D$21,'AZA Bezug'!$G$21,IF(E28='AZA Bezug'!$D$22,'AZA Bezug'!$G$22,\"-\"))))))))))))))))))","v":"-"},null,null,null,0,null,null,null,null,0]
[null,21,"-",null,"-",null,null,null,null,null,null,null,null,null,null,null,null,null,null,null,{"$f":"IF(E29='AZA Bezug'!$D$5,'AZA Bezug'!$F$5,IF(E29='AZA Bezug'!$D$6,'AZA Bezug'!$F$6,IF(E29='AZA Bezug'!$D$7,'AZA Bezug'!$F$7,IF(E29='AZA Bezug'!$D$8,'AZA Bezug'!$F$8,IF(E29='AZA Bezug'!$D$9,'AZA Bezug'!$F$9,IF(E29='AZA Bezug'!$D$10,'AZA Bezug'!$F$10,IF(E29='AZA Bezug'!$D$11,'AZA Bezug'!$F$11,IF(E29='AZA Bezug'!$D$12,'AZA Bezug'!$F$12,IF(E29='AZA Bezug'!$D$13,'AZA Bezug'!$F$13,IF(E29='AZA Bezug'!$D$14,'AZA Bezug'!$F$14,IF(E29='AZA Bezug'!$D$15,'AZA Bezug'!$F$15,IF(E29='AZA Bezug'!$D$16,'AZA Bezug'!$F$16,IF(E29='AZA Bezug'!$D$17,'AZA Bezug'!$F$17,IF(E29='AZA Bezug'!$D$18,'AZA Bezug'!$F$18,IF(E29='AZA Bezug'!$D$19,'AZA Bezug'!$F$19,IF(E29='AZA Bezug'!$D$20,'AZA Bezug'!$F$20,IF(E29='AZA Bezug'!$D$21,'AZA Bezug'!$F$21,IF(E29='AZA Bezug'!$D$22,'AZA Bezug'!$F$22,\"-\"))))))))))))))))))","v":"-"},null,{"$f":"IF(E29='AZA Bezug'!$D$5,'AZA Bezug'!$G$5,IF(E29='AZA Bezug'!$D$6,'AZA Bezug'!$G$6,IF(E29='AZA Bezug'!$D$7,'AZA Bezug'!$G$7,IF(E29='AZA Bezug'!$D$8,'AZA Bezug'!$G$8,IF(E29='AZA Bezug'!$D$9,'AZA Bezug'!$G$9,IF(E29='AZA Bezug'!$D$10,'AZA Bezug'!$G$10,IF(E29='AZA Bezug'!$D$11,'AZA Bezug'!$G$11,IF(E29='AZA Bezug'!$D$12,'AZA Bezug'!$G$12,IF(E29='AZA Bezug'!$D$13,'AZA Bezug'!$G$13,IF(E29='AZA Bezug'!$D$14,'AZA Bezug'!$G$14,IF(E29='AZA Bezug'!$D$15,'AZA Bezug'!$G$15,IF(E29='AZA Bezug'!$D$16,'AZA Bezug'!$G$16,IF(E29='AZA Bezug'!$D$17,'AZA Bezug'!$G$17,IF(E29='AZA Bezug'!$D$18,'AZA Bezug'!$G$18,IF(E29='AZA Bezug'!$D$19,'AZA Bezug'!$G$19,IF(E29='AZA Bezug'!$D$20,'AZA Bezug'!$G$20,IF(E29='AZA Bezug'!$D$21,'AZA Bezug'!$G$21,IF(E29='AZA Bezug'!$D$22,'AZA Bezug'!$G$22,\"-\"))))))))))))))))))","v":"-"},null,null,null,0,null,null,null,null,0]
[null,22,"-",null,"-",null,null,null,null,null,null,null,null,null,null,null,null,null,null,null,{"$f":"IF(E30='AZA Bezug'!$D$5,'AZA Bezug'!$F$5,IF(E30='AZA Bezug'!$D$6,'AZA Bezug'!$F$6,IF(E30='AZA Bezug'!$D$7,'AZA Bezug'!$F$7,IF(E30='AZA Bezug'!$D$8,'AZA Bezug'!$F$8,IF(E30='AZA Bezug'!$D$9,'AZA Bezug'!$F$9,IF(E30='AZA Bezug'!$D$10,'AZA Bezug'!$F$10,IF(E30='AZA Bezug'!$D$11,'AZA Bezug'!$F$11,IF(E30='AZA Bezug'!$D$12,'AZA Bezug'!$F$12,IF(E30='AZA Bezug'!$D$13,'AZA Bezug'!$F$13,IF(E30='AZA Bezug'!$D$14,'AZA Bezug'!$F$14,IF(E30='AZA Bezug'!$D$15,'AZA Bezug'!$F$15,IF(E30='AZA Bezug'!$D$16,'AZA Bezug'!$F$16,IF(E30='AZA Bezug'!$D$17,'AZA Bezug'!$F$17,IF(E30='AZA Bezug'!$D$18,'AZA Bezug'!$F$18,IF(E30='AZA Bezug'!$D$19,'AZA Bezug'!$F$19,IF(E30='AZA Bezug'!$D$20,'AZA Bezug'!$F$20,IF(E30='AZA Bezug'!$D$21,'AZA Bezug'!$F$21,IF(E30='AZA Bezug'!$D$22,'AZA Bezug'!$F$22,\"-\"))))))))))))))))))","v":"-"},null,{"$f":"IF(E30='AZA Bezug'!$D$5,'AZA Bezug'!$G$5,IF(E30='AZA Bezug'!$D$6,'AZA Bezug'!$G$6,IF(E30='AZA Bezug'!$D$7,'AZA Bezug'!$G$7,IF(E30='AZA Bezug'!$D$8,'AZA Bezug'!$G$8,IF(E30='AZA Bezug'!$D$9,'AZA Bezug'!$G$9,IF(E30='AZA Bezug'!$D$10,'AZA Bezug'!$G$10,IF(E30='AZA Bezug'!$D$11,'AZA Bezug'!$G$11,IF(E30='AZA Bezug'!$D$12,'AZA Bezug'!$G$12,IF(E30='AZA Bezug'!$D$13,'AZA Bezug'!$G$13,IF(E30='AZA Bezug'!$D$14,'AZA Bezug'!$G$14,IF(E30='AZA Bezug'!$D$15,'AZA Bezug'!$G$15,IF(E30='AZA Bezug'!$D$16,'AZA Bezug'!$G$16,IF(E30='AZA Bezug'!$D$17,'AZA Bezug'!$G$17,IF(E30='AZA Bezug'!$D$18,'AZA Bezug'!$G$18,IF(E30='AZA Bezug'!$D$19,'AZA Bezug'!$G$19,IF(E30='AZA Bezug'!$D$20,'AZA Bezug'!$G$20,IF(E30='AZA Bezug'!$D$21,'AZA Bezug'!$G$21,IF(E30='AZA Bezug'!$D$22,'AZA Bezug'!$G$22,\"-\"))))))))))))))))))","v":"-"},null,null,null,0,null,null,null,null,0]
[null,23,"-",null,"-",null,null,null,null,null,null,null,null,null,null,null,null,null,null,null,{"$f":"IF(E31='AZA Bezug'!$D$5,'AZA Bezug'!$F$5,IF(E31='AZA Bezug'!$D$6,'AZA Bezug'!$F$6,IF(E31='AZA Bezug'!$D$7,'AZA Bezug'!$F$7,IF(E31='AZA Bezug'!$D$8,'AZA Bezug'!$F$8,IF(E31='AZA Bezug'!$D$9,'AZA Bezug'!$F$9,IF(E31='AZA Bezug'!$D$10,'AZA Bezug'!$F$10,IF(E31='AZA Bezug'!$D$11,'AZA Bezug'!$F$11,IF(E31='AZA Bezug'!$D$12,'AZA Bezug'!$F$12,IF(E31='AZA Bezug'!$D$13,'AZA Bezug'!$F$13,IF(E31='AZA Bezug'!$D$14,'AZA Bezug'!$F$14,IF(E31='AZA Bezug'!$D$15,'AZA Bezug'!$F$15,IF(E31='AZA Bezug'!$D$16,'AZA Bezug'!$F$16,IF(E31='AZA Bezug'!$D$17,'AZA Bezug'!$F$17,IF(E31='AZA Bezug'!$D$18,'AZA Bezug'!$F$18,IF(E31='AZA Bezug'!$D$19,'AZA Bezug'!$F$19,IF(E31='AZA Bezug'!$D$20,'AZA Bezug'!$F$20,IF(E31='AZA Bezug'!$D$21,'AZA Bezug'!$F$21,IF(E31='AZA Bezug'!$D$22,'AZA Bezug'!$F$22,\"-\"))))))))))))))))))","v":"-"},null,{"$f":"IF(E31='AZA Bezug'!$D$5,'AZA Bezug'!$G$5,IF(E31='AZA Bezug'!$D$6,'AZA Bezug'!$G$6,IF(E31='AZA Bezug'!$D$7,'AZA Bezug'!$G$7,IF(E31='AZA Bezug'!$D$8,'AZA Bezug'!$G$8,IF(E31='AZA Bezug'!$D$9,'AZA Bezug'!$G$9,IF(E31='AZA Bezug'!$D$10,'AZA Bezug'!$G$10,IF(E31='AZA Bezug'!$D$11,'AZA Bezug'!$G$11,IF(E31='AZA Bezug'!$D$12,'AZA Bezug'!$G$12,IF(E31='AZA Bezug'!$D$13,'AZA Bezug'!$G$13,IF(E31='AZA Bezug'!$D$14,'AZA Bezug'!$G$14,IF(E31='AZA Bezug'!$D$15,'AZA Bezug'!$G$15,IF(E31='AZA Bezug'!$D$16,'AZA Bezug'!$G$16,IF(E31='AZA Bezug'!$D$17,'AZA Bezug'!$G$17,IF(E31='AZA Bezug'!$D$18,'AZA Bezug'!$G$18,IF(E31='AZA Bezug'!$D$19,'AZA Bezug'!$G$19,IF(E31='AZA Bezug'!$D$20,'AZA Bezug'!$G$20,IF(E31='AZA Bezug'!$D$21,'AZA Bezug'!$G$21,IF(E31='AZA Bezug'!$D$22,'AZA Bezug'!$G$22,\"-\"))))))))))))))))))","v":"-"},null,null,null,0,null,null,null,null,0]
[null,24,"-",null,"-",null,null,null,null,null,null,null,null,null,null,null,null,null,null,null,{"$f":"IF(E32='AZA Bezug'!$D$5,'AZA Bezug'!$F$5,IF(E32='AZA Bezug'!$D$6,'AZA Bezug'!$F$6,IF(E32='AZA Bezug'!$D$7,'AZA Bezug'!$F$7,IF(E32='AZA Bezug'!$D$8,'AZA Bezug'!$F$8,IF(E32='AZA Bezug'!$D$9,'AZA Bezug'!$F$9,IF(E32='AZA Bezug'!$D$10,'AZA Bezug'!$F$10,IF(E32='AZA Bezug'!$D$11,'AZA Bezug'!$F$11,IF(E32='AZA Bezug'!$D$12,'AZA Bezug'!$F$12,IF(E32='AZA Bezug'!$D$13,'AZA Bezug'!$F$13,IF(E32='AZA Bezug'!$D$14,'AZA Bezug'!$F$14,IF(E32='AZA Bezug'!$D$15,'AZA Bezug'!$F$15,IF(E32='AZA Bezug'!$D$16,'AZA Bezug'!$F$16,IF(E32='AZA Bezug'!$D$17,'AZA Bezug'!$F$17,IF(E32='AZA Bezug'!$D$18,'AZA Bezug'!$F$18,IF(E32='AZA Bezug'!$D$19,'AZA Bezug'!$F$19,IF(E32='AZA Bezug'!$D$20,'AZA Bezug'!$F$20,IF(E32='AZA Bezug'!$D$21,'AZA Bezug'!$F$21,IF(E32='AZA Bezug'!$D$22,'AZA Bezug'!$F$22,\"-\"))))))))))))))))))","v":"-"},null,{"$f":"IF(E32='AZA Bezug'!$D$5,'AZA Bezug'!$G$5,IF(E32='AZA Bezug'!$D$6,'AZA Bezug'!$G$6,IF(E32='AZA Bezug'!$D$7,'AZA Bezug'!$G$7,IF(E32='AZA Bezug'!$D$8,'AZA Bezug'!$G$8,IF(E32='AZA Bezug'!$D$9,'AZA Bezug'!$G$9,IF(E32='AZA Bezug'!$D$10,'AZA Bezug'!$G$10,IF(E32='AZA Bezug'!$D$11,'AZA Bezug'!$G$11,IF(E32='AZA Bezug'!$D$12,'AZA Bezug'!$G$12,IF(E32='AZA Bezug'!$D$13,'AZA Bezug'!$G$13,IF(E32='AZA Bezug'!$D$14,'AZA Bezug'!$G$14,IF(E32='AZA Bezug'!$D$15,'AZA Bezug'!$G$15,IF(E32='AZA Bezug'!$D$16,'AZA Bezug'!$G$16,IF(E32='AZA Bezug'!$D$17,'AZA Bezug'!$G$17,IF(E32='AZA Bezug'!$D$18,'AZA Bezug'!$G$18,IF(E32='AZA Bezug'!$D$19,'AZA Bezug'!$G$19,IF(E32='AZA Bezug'!$D$20,'AZA Bezug'!$G$20,IF(E32='AZA Bezug'!$D$21,'AZA Bezug'!$G$21,IF(E32='AZA Bezug'!$D$22,'AZA Bezug'!$G$22,\"-\"))))))))))))))))))","v":"-"},null,null,null,0,null,null,null,null,0]
[null,25,"-",null,"-",null,null,null,null,null,null,null,null,null,null,null,null,null,null,null,{"$f":"IF(E33='AZA Bezug'!$D$5,'AZA Bezug'!$F$5,IF(E33='AZA Bezug'!$D$6,'AZA Bezug'!$F$6,IF(E33='AZA Bezug'!$D$7,'AZA Bezug'!$F$7,IF(E33='AZA Bezug'!$D$8,'AZA Bezug'!$F$8,IF(E33='AZA Bezug'!$D$9,'AZA Bezug'!$F$9,IF(E33='AZA Bezug'!$D$10,'AZA Bezug'!$F$10,IF(E33='AZA Bezug'!$D$11,'AZA Bezug'!$F$11,IF(E33='AZA Bezug'!$D$12,'AZA Bezug'!$F$12,IF(E33='AZA Bezug'!$D$13,'AZA Bezug'!$F$13,IF(E33='AZA Bezug'!$D$14,'AZA Bezug'!$F$14,IF(E33='AZA Bezug'!$D$15,'AZA Bezug'!$F$15,IF(E33='AZA Bezug'!$D$16,'AZA Bezug'!$F$16,IF(E33='AZA Bezug'!$D$17,'AZA Bezug'!$F$17,IF(E33='AZA Bezug'!$D$18,'AZA Bezug'!$F$18,IF(E33='AZA Bezug'!$D$19,'AZA Bezug'!$F$19,IF(E33='AZA Bezug'!$D$20,'AZA Bezug'!$F$20,IF(E33='AZA Bezug'!$D$21,'AZA Bezug'!$F$21,IF(E33='AZA Bezug'!$D$22,'AZA Bezug'!$F$22,\"-\"))))))))))))))))))","v":"-"},null,{"$f":"IF(E33='AZA Bezug'!$D$5,'AZA Bezug'!$G$5,IF(E33='AZA Bezug'!$D$6,'AZA Bezug'!$G$6,IF(E33='AZA Bezug'!$D$7,'AZA Bezug'!$G$7,IF(E33='AZA Bezug'!$D$8,'AZA Bezug'!$G$8,IF(E33='AZA Bezug'!$D$9,'AZA Bezug'!$G$9,IF(E33='AZA Bezug'!$D$10,'AZA Bezug'!$G$10,IF(E33='AZA Bezug'!$D$11,'AZA Bezug'!$G$11,IF(E33='AZA Bezug'!$D$12,'AZA Bezug'!$G$12,IF(E33='AZA Bezug'!$D$13,'AZA Bezug'!$G$13,IF(E33='AZA Bezug'!$D$14,'AZA Bezug'!$G$14,IF(E33='AZA Bezug'!$D$15,'AZA Bezug'!$G$15,IF(E33='AZA Bezug'!$D$16,'AZA Bezug'!$G$16,IF(E33='AZA Bezug'!$D$17,'AZA Bezug'!$G$17,IF(E33='AZA Bezug'!$D$18,'AZA Bezug'!$G$18,IF(E33='AZA Bezug'!$D$19,'AZA Bezug'!$G$19,IF(E33='AZA Bezug'!$D$20,'AZA Bezug'!$G$20,IF(E33='AZA Bezug'!$D$21,'AZA Bezug'!$G$21,IF(E33='AZA Bezug'!$D$22,'AZA Bezug'!$G$22,\"-\"))))))))))))))))))","v":"-"},null,null,null,0,null,null,null,null,0]
[null,26,"-",null,"-",null,null,null,null,null,null,null,null,null,null,null,null,null,null,null,{"$f":"IF(E34='AZA Bezug'!$D$5,'AZA Bezug'!$F$5,IF(E34='AZA Bezug'!$D$6,'AZA Bezug'!$F$6,IF(E34='AZA Bezug'!$D$7,'AZA Bezug'!$F$7,IF(E34='AZA Bezug'!$D$8,'AZA Bezug'!$F$8,IF(E34='AZA Bezug'!$D$9,'AZA Bezug'!$F$9,IF(E34='AZA Bezug'!$D$10,'AZA Bezug'!$F$10,IF(E34='AZA Bezug'!$D$11,'AZA Bezug'!$F$11,IF(E34='AZA Bezug'!$D$12,'AZA Bezug'!$F$12,IF(E34='AZA Bezug'!$D$13,'AZA Bezug'!$F$13,IF(E34='AZA Bezug'!$D$14,'AZA Bezug'!$F$14,IF(E34='AZA Bezug'!$D$15,'AZA Bezug'!$F$15,IF(E34='AZA Bezug'!$D$16,'AZA Bezug'!$F$16,IF(E34='AZA Bezug'!$D$17,'AZA Bezug'!$F$17,IF(E34='AZA Bezug'!$D$18,'AZA Bezug'!$F$18,IF(E34='AZA Bezug'!$D$19,'AZA Bezug'!$F$19,IF(E34='AZA Bezug'!$D$20,'AZA Bezug'!$F$20,IF(E34='AZA Bezug'!$D$21,'AZA Bezug'!$F$21,IF(E34='AZA Bezug'!$D$22,'AZA Bezug'!$F$22,\"-\"))))))))))))))))))","v":"-"},null,{"$f":"IF(E34='AZA Bezug'!$D$5,'AZA Bezug'!$G$5,IF(E34='AZA Bezug'!$D$6,'AZA Bezug'!$G$6,IF(E34='AZA Bezug'!$D$7,'AZA Bezug'!$G$7,IF(E34='AZA Bezug'!$D$8,'AZA Bezug'!$G$8,IF(E34='AZA Bezug'!$D$9,'AZA Bezug'!$G$9,IF(E34='AZA Bezug'!$D$10,'AZA Bezug'!$G$10,IF(E34='AZA Bezug'!$D$11,'AZA Bezug'!$G$11,IF(E34='AZA Bezug'!$D$12,'AZA Bezug'!$G$12,IF(E34='AZA Bezug'!$D$13,'AZA Bezug'!$G$13,IF(E34='AZA Bezug'!$D$14,'AZA Bezug'!$G$14,IF(E34='AZA Bezug'!$D$15,'AZA Bezug'!$G$15,IF(E34='AZA Bezug'!$D$16,'AZA Bezug'!$G$16,IF(E34='AZA Bezug'!$D$17,'AZA Bezug'!$G$17,IF(E34='AZA Bezug'!$D$18,'AZA Bezug'!$G$18,IF(E34='AZA Bezug'!$D$19,'AZA Bezug'!$G$19,IF(E34='AZA Bezug'!$D$20,'AZA Bezug'!$G$20,IF(E34='AZA Bezug'!$D$21,'AZA Bezug'!$G$21,IF(E34='AZA Bezug'!$D$22,'AZA Bezug'!$G$22,\"-\"))))))))))))))))))","v":"-"},null,null,null,0,null,null,null,null,0]
[null,27,"-",null,"-",null,null,null,null,null,null,null,null,null,null,null,null,null,null,null,{"$f":"IF(E35='AZA Bezug'!$D$5,'AZA Bezug'!$F$5,IF(E35='AZA Bezug'!$D$6,'AZA Bezug'!$F$6,IF(E35='AZA Bezug'!$D$7,'AZA Bezug'!$F$7,IF(E35='AZA Bezug'!$D$8,'AZA Bezug'!$F$8,IF(E35='AZA Bezug'!$D$9,'AZA Bezug'!$F$9,IF(E35='AZA Bezug'!$D$10,'AZA Bezug'!$F$10,IF(E35='AZA Bezug'!$D$11,'AZA Bezug'!$F$11,IF(E35='AZA Bezug'!$D$12,'AZA Bezug'!$F$12,IF(E35='AZA Bezug'!$D$13,'AZA Bezug'!$F$13,IF(E35='AZA Bezug'!$D$14,'AZA Bezug'!$F$14,IF(E35='AZA Bezug'!$D$15,'AZA Bezug'!$F$15,IF(E35='AZA Bezug'!$D$16,'AZA Bezug'!$F$16,IF(E35='AZA Bezug'!$D$17,'AZA Bezug'!$F$17,IF(E35='AZA Bezug'!$D$18,'AZA Bezug'!$F$18,IF(E35='AZA Bezug'!$D$19,'AZA Bezug'!$F$19,IF(E35='AZA Bezug'!$D$20,'AZA Bezug'!$F$20,IF(E35='AZA Bezug'!$D$21,'AZA Bezug'!$F$21,IF(E35='AZA Bezug'!$D$22,'AZA Bezug'!$F$22,\"-\"))))))))))))))))))","v":"-"},null,{"$f":"IF(E35='AZA Bezug'!$D$5,'AZA Bezug'!$G$5,IF(E35='AZA Bezug'!$D$6,'AZA Bezug'!$G$6,IF(E35='AZA Bezug'!$D$7,'AZA Bezug'!$G$7,IF(E35='AZA Bezug'!$D$8,'AZA Bezug'!$G$8,IF(E35='AZA Bezug'!$D$9,'AZA Bezug'!$G$9,IF(E35='AZA Bezug'!$D$10,'AZA Bezug'!$G$10,IF(E35='AZA Bezug'!$D$11,'AZA Bezug'!$G$11,IF(E35='AZA Bezug'!$D$12,'AZA Bezug'!$G$12,IF(E35='AZA Bezug'!$D$13,'AZA Bezug'!$G$13,IF(E35='AZA Bezug'!$D$14,'AZA Bezug'!$G$14,IF(E35='AZA Bezug'!$D$15,'AZA Bezug'!$G$15,IF(E35='AZA Bezug'!$D$16,'AZA Bezug'!$G$16,IF(E35='AZA Bezug'!$D$17,'AZA Bezug'!$G$17,IF(E35='AZA Bezug'!$D$18,'AZA Bezug'!$G$18,IF(E35='AZA Bezug'!$D$19,'AZA Bezug'!$G$19,IF(E35='AZA Bezug'!$D$20,'AZA Bezug'!$G$20,IF(E35='AZA Bezug'!$D$21,'AZA Bezug'!$G$21,IF(E35='AZA Bezug'!$D$22,'AZA Bezug'!$G$22,\"-\"))))))))))))))))))","v":"-"},null,null,null,0,null,null,null,null,0]
[null,28,"-",null,"-",null,null,null,null,null,null,null,null,null,null,null,null,null,null,null,{"$f":"IF(E36='AZA Bezug'!$D$5,'AZA Bezug'!$F$5,IF(E36='AZA Bezug'!$D$6,'AZA Bezug'!$F$6,IF(E36='AZA Bezug'!$D$7,'AZA Bezug'!$F$7,IF(E36='AZA Bezug'!$D$8,'AZA Bezug'!$F$8,IF(E36='AZA Bezug'!$D$9,'AZA Bezug'!$F$9,IF(E36='AZA Bezug'!$D$10,'AZA Bezug'!$F$10,IF(E36='AZA Bezug'!$D$11,'AZA Bezug'!$F$11,IF(E36='AZA Bezug'!$D$12,'AZA Bezug'!$F$12,IF(E36='AZA Bezug'!$D$13,'AZA Bezug'!$F$13,IF(E36='AZA Bezug'!$D$14,'AZA Bezug'!$F$14,IF(E36='AZA Bezug'!$D$15,'AZA Bezug'!$F$15,IF(E36='AZA Bezug'!$D$16,'AZA Bezug'!$F$16,IF(E36='AZA Bezug'!$D$17,'AZA Bezug'!$F$17,IF(E36='AZA Bezug'!$D$18,'AZA Bezug'!$F$18,IF(E36='AZA Bezug'!$D$19,'AZA Bezug'!$F$19,IF(E36='AZA Bezug'!$D$20,'AZA Bezug'!$F$20,IF(E36='AZA Bezug'!$D$21,'AZA Bezug'!$F$21,IF(E36='AZA Bezug'!$D$22,'AZA Bezug'!$F$22,\"-\"))))))))))))))))))","v":"-"},null,{"$f":"IF(E36='AZA Bezug'!$D$5,'AZA Bezug'!$G$5,IF(E36='AZA Bezug'!$D$6,'AZA Bezug'!$G$6,IF(E36='AZA Bezug'!$D$7,'AZA Bezug'!$G$7,IF(E36='AZA Bezug'!$D$8,'AZA Bezug'!$G$8,IF(E36='AZA Bezug'!$D$9,'AZA Bezug'!$G$9,IF(E36='AZA Bezug'!$D$10,'AZA Bezug'!$G$10,IF(E36='AZA Bezug'!$D$11,'AZA Bezug'!$G$11,IF(E36='AZA Bezug'!$D$12,'AZA Bezug'!$G$12,IF(E36='AZA Bezug'!$D$13,'AZA Bezug'!$G$13,IF(E36='AZA Bezug'!$D$14,'AZA Bezug'!$G$14,IF(E36='AZA Bezug'!$D$15,'AZA Bezug'!$G$15,IF(E36='AZA Bezug'!$D$16,'AZA Bezug'!$G$16,IF(E36='AZA Bezug'!$D$17,'AZA Bezug'!$G$17,IF(E36='AZA Bezug'!$D$18,'AZA Bezug'!$G$18,IF(E36='AZA Bezug'!$D$19,'AZA Bezug'!$G$19,IF(E36='AZA Bezug'!$D$20,'AZA Bezug'!$G$20,IF(E36='AZA Bezug'!$D$21,'AZA Bezug'!$G$21,IF(E36='AZA Bezug'!$D$22,'AZA Bezug'!$G$22,\"-\"))))))))))))))))))","v":"-"},null,null,null,0,null,null,null,null,0]
[null,29,"-",null,"-",null,null,null,null,null,null,null,null,null,null,null,null,null,null,null,{"$f":"IF(E37='AZA Bezug'!$D$5,'AZA Bezug'!$F$5,IF(E37='AZA Bezug'!$D$6,'AZA Bezug'!$F$6,IF(E37='AZA Bezug'!$D$7,'AZA Bezug'!$F$7,IF(E37='AZA Bezug'!$D$8,'AZA Bezug'!$F$8,IF(E37='AZA Bezug'!$D$9,'AZA Bezug'!$F$9,IF(E37='AZA Bezug'!$D$10,'AZA Bezug'!$F$10,IF(E37='AZA Bezug'!$D$11,'AZA Bezug'!$F$11,IF(E37='AZA Bezug'!$D$12,'AZA Bezug'!$F$12,IF(E37='AZA Bezug'!$D$13,'AZA Bezug'!$F$13,IF(E37='AZA Bezug'!$D$14,'AZA Bezug'!$F$14,IF(E37='AZA Bezug'!$D$15,'AZA Bezug'!$F$15,IF(E37='AZA Bezug'!$D$16,'AZA Bezug'!$F$16,IF(E37='AZA Bezug'!$D$17,'AZA Bezug'!$F$17,IF(E37='AZA Bezug'!$D$18,'AZA Bezug'!$F$18,IF(E37='AZA Bezug'!$D$19,'AZA Bezug'!$F$19,IF(E37='AZA Bezug'!$D$20,'AZA Bezug'!$F$20,IF(E37='AZA Bezug'!$D$21,'AZA Bezug'!$F$21,IF(E37='AZA Bezug'!$D$22,'AZA Bezug'!$F$22,\"-\"))))))))))))))))))","v":"-"},null,{"$f":"IF(E37='AZA Bezug'!$D$5,'AZA Bezug'!$G$5,IF(E37='AZA Bezug'!$D$6,'AZA Bezug'!$G$6,IF(E37='AZA Bezug'!$D$7,'AZA Bezug'!$G$7,IF(E37='AZA Bezug'!$D$8,'AZA Bezug'!$G$8,IF(E37='AZA Bezug'!$D$9,'AZA Bezug'!$G$9,IF(E37='AZA Bezug'!$D$10,'AZA Bezug'!$G$10,IF(E37='AZA Bezug'!$D$11,'AZA Bezug'!$G$11,IF(E37='AZA Bezug'!$D$12,'AZA Bezug'!$G$12,IF(E37='AZA Bezug'!$D$13,'AZA Bezug'!$G$13,IF(E37='AZA Bezug'!$D$14,'AZA Bezug'!$G$14,IF(E37='AZA Bezug'!$D$15,'AZA Bezug'!$G$15,IF(E37='AZA Bezug'!$D$16,'AZA Bezug'!$G$16,IF(E37='AZA Bezug'!$D$17,'AZA Bezug'!$G$17,IF(E37='AZA Bezug'!$D$18,'AZA Bezug'!$G$18,IF(E37='AZA Bezug'!$D$19,'AZA Bezug'!$G$19,IF(E37='AZA Bezug'!$D$20,'AZA Bezug'!$G$20,IF(E37='AZA Bezug'!$D$21,'AZA Bezug'!$G$21,IF(E37='AZA Bezug'!$D$22,'AZA Bezug'!$G$22,\"-\"))))))))))))))))))","v":"-"},null,null,null,0,null,null,null,null,0]
[null,30,"-",null,"-",null,null,null,null,null,null,null,null,null,null,null,null,null,null,null,{"$f":"IF(E38='AZA Bezug'!$D$5,'AZA Bezug'!$F$5,IF(E38='AZA Bezug'!$D$6,'AZA Bezug'!$F$6,IF(E38='AZA Bezug'!$D$7,'AZA Bezug'!$F$7,IF(E38='AZA Bezug'!$D$8,'AZA Bezug'!$F$8,IF(E38='AZA Bezug'!$D$9,'AZA Bezug'!$F$9,IF(E38='AZA Bezug'!$D$10,'AZA Bezug'!$F$10,IF(E38='AZA Bezug'!$D$11,'AZA Bezug'!$F$11,IF(E38='AZA Bezug'!$D$12,'AZA Bezug'!$F$12,IF(E38='AZA Bezug'!$D$13,'AZA Bezug'!$F$13,IF(E38='AZA Bezug'!$D$14,'AZA Bezug'!$F$14,IF(E38='AZA Bezug'!$D$15,'AZA Bezug'!$F$15,IF(E38='AZA Bezug'!$D$16,'AZA Bezug'!$F$16,IF(E38='AZA Bezug'!$D$17,'AZA Bezug'!$F$17,IF(E38='AZA Bezug'!$D$18,'AZA Bezug'!$F$18,IF(E38='AZA Bezug'!$D$19,'AZA Bezug'!$F$19,IF(E38='AZA Bezug'!$D$20,'AZA Bezug'!$F$20,IF(E38='AZA Bezug'!$D$21,'AZA Bezug'!$F$21,IF(E38='AZA Bezug'!$D$22,'AZA Bezug'!$F$22,\"-\"))))))))))))))))))","v":"-"},null,{"$f":"IF(E38='AZA Bezug'!$D$5,'AZA Bezug'!$G$5,IF(E38='AZA Bezug'!$D$6,'AZA Bezug'!$G$6,IF(E38='AZA Bezug'!$D$7,'AZA Bezug'!$G$7,IF(E38='AZA Bezug'!$D$8,'AZA Bezug'!$G$8,IF(E38='AZA Bezug'!$D$9,'AZA Bezug'!$G$9,IF(E38='AZA Bezug'!$D$10,'AZA Bezug'!$G$10,IF(E38='AZA Bezug'!$D$11,'AZA Bezug'!$G$11,IF(E38='AZA Bezug'!$D$12,'AZA Bezug'!$G$12,IF(E38='AZA Bezug'!$D$13,'AZA Bezug'!$G$13,IF(E38='AZA Bezug'!$D$14,'AZA Bezug'!$G$14,IF(E38='AZA Bezug'!$D$15,'AZA Bezug'!$G$15,IF(E38='AZA Bezug'!$D$16,'AZA Bezug'!$G$16,IF(E38='AZA Bezug'!$D$17,'AZA Bezug'!$G$17,IF(E38='AZA Bezug'!$D$18,'AZA Bezug'!$G$18,IF(E38='AZA Bezug'!$D$19,'AZA Bezug'!$G$19,IF(E38='AZA Bezug'!$D$20,'AZA Bezug'!$G$20,IF(E38='AZA Bezug'!$D$21,'AZA Bezug'!$G$21,IF(E38='AZA Bezug'!$D$22,'AZA Bezug'!$G$22,\"-\"))))))))))))))))))","v":"-"},null,null,null,0,null,null,null,null,0]
[]
[null,null,"Nach dem Ausfüllen dieser Tabelle ergibt sich die nachstehende Zuwendung, die zur Auszahlung beantragt werden soll.",null,null,null,null,null,null,null,null,null,null,null,null,null,null,null,null,{"$f":"IF(AA9<>0,MIN(AA9:AJ9),0)+IF(AA10<>0,MIN(AA10:AJ10),0)+IF(AA11<>0,MIN(AA11:AJ11),0)+IF(AA12<>0,MIN(AA12:AJ12),0)+IF(AA13<>0,MIN(AA13:AJ13),0)+IF(AA14<>0,MIN(AA14:AJ14),0)+IF(AA15<>0,MIN(AA15:AJ15),0)+IF(AA16<>0,MIN(AA16:AJ16),0)+IF(AA17<>0,MIN(AA17:AJ17),0)+IF(AA18<>0,MIN(AA18:AJ18),0)+IF(AA19<>0,MIN(AA19:AJ19),0)+IF(AA20<>0,MIN(AA20:AJ20),0)+IF(AA21<>0,MIN(AA21:AJ21),0)+IF(AA22<>0,MIN(AA22:AJ22),0)+IF(AA23<>0,MIN(AA23:AJ23),0)+IF(AA24<>0,MIN(AA24:AJ24),0)+IF(AA25<>0,MIN(AA25:AJ25),0)+IF(AA26<>0,MIN(AA26:AJ26),0)+IF(AA27<>0,MIN(AA27:AJ27),0)+IF(AA28<>0,MIN(AA28:AJ28),0)+IF(AA29<>0,MIN(AA29:AJ29),0)+IF(AA30<>0,MIN(AA30:AJ30),0)+IF(AA31<>0,MIN(AA31:AJ31),0)+IF(AA32<>0,MIN(AA32:AJ32),0)+IF(AA33<>0,MIN(AA33:AJ33),0)+IF(AA34<>0,MIN(AA34:AJ34),0)+IF(AA35<>0,MIN(AA35:AJ35),0)+IF(AA36<>0,MIN(AA36:AJ36),0)+IF(AA37<>0,MIN(AA37:AJ37),0)+IF(AA38<>0,MIN(AA38:AJ38),0)","v":0},null,null,null,null,null,"Diese Summe ergibt sich aus dem geringsten Betrag je Zeile der Summe (Bewilligung) oder Summe (Realisierung)."]
[]
[]
[]
[null,null,"Ich erkläre die Richtigkeit meiner Angaben und die Realisierung des Vorhabens im o. g. Umfang."]
[]
[null,null,null,null,null,null,null,null,null,null,null,null,null,null,null,null,null,null,null,"Datum",null,null,null,null,null,"Rechtsverbindliche Unterschrift"]
[]
[null,null,"Nach Prüfung vorliegender Unterlagen"]
[null,null,"V. Ergebnis der Prüfung durch die gemeindliche/kreisliche Rechnungsprüfung (auszufüllen bei komm. Zuwendungsempfangenden) Es ergaben sich keine/die nachstehenden Beanstandungen."]
[]
[]
[]
[]
[null,null,"Ort/ Datum",null,null,null,null,null,null,null,null,null,null,null,null,null,null,null,null,"Rechtsverb. Unterschrift"]
[]
[null,null,"VI. Ergebnis der Prüfung durch die Bewilligungsbehörde (Nr. 11.5 VV, Nr. 11.3 VVG) (nur auszufüllen bei kommunalen Zuwendungsempfangenden) Es ergaben sich keine/die nachstehenden Beanstandungen."]
[]
[]
[]
[]
[]
[null,null,"Ort/ Datum",null,null,null,null,null,null,null,null,null,null,null,null,null,null,null,null,"Dienststelle/\nUnterschrift",null,null,null,null,"LFB/ BWB"]

{"sheet":"AZA Bezug","index":3,"n_rows":22,"n_cols":14,"rows_kept":22,"cut":false,"hidden":true,"merged":[]}
[null,"ProjektNr.",null,"Einzelvorhaben",null,"zugehörige Einheit",null,"Einheit"]
[]
[null,null,null,null,null,null,null,null,null,null,null,"Seite 1"]
[null,"-",null,"-"]
[null,1,null,"StandortGutachten",null,"Stk.",300,"Stk.",null,null,null,"Auszahlungsantrag"]
[null,2,null,"StandortGut. je ha",null,"ha",25,"ha",null,null,null,"Auszahlungsantrag/Endverwendungsnachweis"]
[null,3,null,"Kulturvorb. normal",null,"ha",570,"lfdm"]
[null,4,null,"Kulturvorb. erschwert",null,"ha",855,"Stk."]
[null,5,null,"Bodenbearbeitung",null,"ha",325,"HStk/ha",null,null,null,"Richtlinie Nr.",null,"Teilvorhaben Beschreibung"]
[null,6,null,"Zaunmaterial/ -bau",null,"lfdm",7.7]
[null,7,null,"Pflanzgut/Pflanzung LBA",null,"Stk.",1040,null,null,null,null,"-",null,"-"]
[null,8,null,"Pflanzgut/Pflanzung GKI",null,"Stk.",516,null,null,null,null,"I.2.1",null,"Entwicklung naturnaher Waldgesellschaften"]
[null,9,null,"Pflanzgut/Pfl. WTA/ EIB",null,"Stk.",720,null,null,null,null,"I.2.2",null,"Waldpflege"]
[null,10,null,"Saatgut/ -ausbringung",null,"ha",2390,null,null,null,null,"I.2.1\nI.2.2",null,"Entwicklung naturnaher Wald- gesellschaften und Waldpflege"]
[null,null,null,"Markierungsstäbe",null,"Stk.",0.38]
[null,null,null,"Waldrandpfl./ -pflanzung",null,"Stk.",2350,null,null,null,null,"heute","Stand"]
[null,null,null,"Kulturpfl. normal 1. J.",null,"ha",440,null,null,null,null,{"$f":"TODAY()","v":"2024-02-13"},"2024-02-13"]
[null,null,null,"Kulturpfl. normal 2. J.",null,"ha",440,null,null,null,null,"2024-03-15"]
[null,null,null,"Kulturpfl. erschwert 1. J.",null,"ha",660,null,null,null,null,{"$f":"(L17)<=L18","v":true}]
[null,null,null,"Kulturpfl. erschwert 2. J.",null,"ha",660]
[null,null,null,"Jungbest.pfl. normal",null,"ha",260,null,null,null,null,"ja"]
[null,null,null,"Jungbest.pfl. erschwert",null,"ha",390,null,null,null,null,"nein"]